{"text_format":"3","workbook":"xlsx","n_sheets":3,"sheets":["General","LKZ","WKZ"],"not_rendered":{"images":2,"defined_names":4},"read":"whole","date_system":"1900"}

{"sheet":"General","index":0,"n_rows":3,"n_cols":4,"rows_kept":3}
["System:","IDLDB","Ersetzen durch Aliasnamen (System) der verwendeten Datenbank","Replace by the alias name (system) of the used database"]
["Sprache:","DEU","diesen Sprachschlüssel nicht ersetzen, da nur deutsche Bezeichnungen vorliegen","Do not replace this language key since only German descriptions are available"]
["gültig ab:","12.2012","Ersetzen durch die erste in der Anwendung verwendete Periode","Replace by the first period used in the application"]

{"sheet":"LKZ","index":1,"n_rows":281,"n_cols":4,"rows_kept":281,"merged":[[0,0,1,0],[0,1,1,1],[0,2,1,2],[0,3,1,3],[140,7,141,7],[140,11,141,11],[140,12,141,12],[140,13,141,13],[140,14,141,14],[153,8,154,8],[153,9,154,9],[153,10,154,10],[153,11,154,11],[153,12,154,12],[153,13,154,13],[153,14,154,14],[160,8,161,8],[160,9,161,9],[160,10,161,10],[160,11,161,11],[160,12,161,12],[160,13,161,13],[160,14,161,14],[194,7,195,7],[194,11,195,11],[194,12,195,12],[194,13,195,13],[194,14,195,14],[208,7,209,7],[208,11,209,11],[208,12,209,12],[208,13,209,13],[208,14,209,14],[217,7,218,7],[217,11,218,11],[217,12,218,12],[217,13,218,13],[217,14,218,14],[225,8,226,8],[225,9,226,9],[225,10,226,10],[225,11,226,11],[225,12,226,12],[225,13,226,13],[225,14,226,14],[230,7,231,7],[230,11,231,11],[230,12,231,12],[230,13,231,13],[230,14,231,14],[245,7,246,7],[245,11,246,11],[245,12,246,12],[245,13,246,13],[245,14,246,14],[252,7,253,7],[252,11,253,11],[252,12,253,12],[252,13,253,13],[252,14,253,14],[261,7,262,7],[261,11,262,11],[261,12,262,12],[261,13,262,13],[261,14,262,14],[286,7,287,7],[286,11,287,11],[286,12,287,12],[286,13,287,13],[286,14,287,14],[305,7,306,7],[305,11,306,11],[305,12,306,12],[305,13,306,13],[305,14,306,14],[311,7,312,7],[311,11,312,11],[311,12,312,12],[311,13,312,13],[311,14,312,14],[326,7,327,7],[326,11,327,11],[326,12,327,12],[326,13,327,13],[326,14,327,14],[334,7,335,7],[334,11,335,11],[334,12,335,12],[334,13,335,13],[334,14,335,14],[373,7,374,7],[373,11,374,11],[373,12,374,12],[373,13,374,13],[373,14,374,14],[393,7,394,7],[393,11,394,11],[393,12,394,12],[393,13,394,13],[393,14,394,14],[403,7,404,7],[403,11,404,11],[403,12,404,12],[403,13,404,13],[403,14,404,14],[413,7,414,7],[413,11,414,11],[413,12,414,12],[413,13,414,13],[413,14,414,14],[419,7,420,7],[419,11,420,11],[419,12,420,12],[419,13,420,13],[419,14,420,14]]}
["LKZ","Bezeichnung","Kurztext","Bezug IDL.XLSLINK"]
[{"$nulls":3},""]
["AF","Afghanistan","AFG",{"$f":"IF(TRUE,\"STLKZ\",_xll.IDLSetValue(_xll.IDLPara(1,\"STLKZ\",Database,,,,,,,,,,,,,,,,,ValidFrom,Language,,,,,C3,B3),_xll.IDLPara(2,,A3)))","v":"STLKZ"}]
["EG","Ägypten","EGY",{"$f":"IF(TRUE,\"STLKZ\",_xll.IDLSetValue(_xll.IDLPara(1,\"STLKZ\",Database,,,,,,,,,,,,,,,,,ValidFrom,Language,,,,,C4,B4),_xll.IDLPara(2,,A4)))","v":"STLKZ"}]
["AX","Åland","ALA",{"$f":"IF(TRUE,\"STLKZ\",_xll.IDLSetValue(_xll.IDLPara(1,\"STLKZ\",Database,,,,,,,,,,,,,,,,,ValidFrom,Language,,,,,C5,B5),_xll.IDLPara(2,,A5)))","v":"STLKZ"}]
["AL","Albanien","ALB",{"$f":"IF(TRUE,\"STLKZ\",_xll.IDLSetValue(_xll.IDLPara(1,\"STLKZ\",Database,,,,,,,,,,,,,,,,,ValidFrom,Language,,,,,C6,B6),_xll.IDLPara(2,,A6)))","v":"STLKZ"}]
["DZ","Algerien","DZA",{"$f":"IF(TRUE,\"STLKZ\",_xll.IDLSetValue(_xll.IDLPara(1,\"STLKZ\",Database,,,,,,,,,,,,,,,,,ValidFrom,Language,,,,,C7,B7),_xll.IDLPara(2,,A7)))","v":"STLKZ"}]
["AS","Amerikanisch-Samoa","ASM",{"$f":"IF(TRUE,\"STLKZ\",_xll.IDLSetValue(_xll.IDLPara(1,\"STLKZ\",Database,,,,,,,,,,,,,,,,,ValidFrom,Language,,,,,C8,B8),_xll.IDLPara(2,,A8)))","v":"STLKZ"}]
["VI","Amerikanische Jungferninseln","VIR",{"$f":"IF(TRUE,\"STLKZ\",_xll.IDLSetValue(_xll.IDLPara(1,\"STLKZ\",Database,,,,,,,,,,,,,,,,,ValidFrom,Language,,,,,C9,B9),_xll.IDLPara(2,,A9)))","v":"STLKZ"}]
["AD","Andorra","AND",{"$f":"IF(TRUE,\"STLKZ\",_xll.IDLSetValue(_xll.IDLPara(1,\"STLKZ\",Database,,,,,,,,,,,,,,,,,ValidFrom,Language,,,,,C10,B10),_xll.IDLPara(2,,A10)))","v":"STLKZ"}]
["AO","Angola","AGO",{"$f":"IF(TRUE,\"STLKZ\",_xll.IDLSetValue(_xll.IDLPara(1,\"STLKZ\",Database,,,,,,,,,,,,,,,,,ValidFrom,Language,,,,,C11,B11),_xll.IDLPara(2,,A11)))","v":"STLKZ"}]
["AI","Anguilla","AIA",{"$f":"IF(TRUE,\"STLKZ\",_xll.IDLSetValue(_xll.IDLPara(1,\"STLKZ\",Database,,,,,,,,,,,,,,,,,ValidFrom,Language,,,,,C12,B12),_xll.IDLPara(2,,A12)))","v":"STLKZ"}]
["AQ","Antarktika","ATA",{"$f":"IF(TRUE,\"STLKZ\",_xll.IDLSetValue(_xll.IDLPara(1,\"STLKZ\",Database,,,,,,,,,,,,,,,,,ValidFrom,Language,,,,,C13,B13),_xll.IDLPara(2,,A13)))","v":"STLKZ"}]
["AG","Antigua und Barbuda","ATG",{"$f":"IF(TRUE,\"STLKZ\",_xll.IDLSetValue(_xll.IDLPara(1,\"STLKZ\",Database,,,,,,,,,,,,,,,,,ValidFrom,Language,,,,,C14,B14),_xll.IDLPara(2,,A14)))","v":"STLKZ"}]
["GQ","Äquatorialguinea","GNQ",{"$f":"IF(TRUE,\"STLKZ\",_xll.IDLSetValue(_xll.IDLPara(1,\"STLKZ\",Database,,,,,,,,,,,,,,,,,ValidFrom,Language,,,,,C15,B15),_xll.IDLPara(2,,A15)))","v":"STLKZ"}]
["AR","Argentinien","ARG",{"$f":"IF(TRUE,\"STLKZ\",_xll.IDLSetValue(_xll.IDLPara(1,\"STLKZ\",Database,,,,,,,,,,,,,,,,,ValidFrom,Language,,,,,C16,B16),_xll.IDLPara(2,,A16)))","v":"STLKZ"}]
["AM","Armenien","ARM",{"$f":"IF(TRUE,\"STLKZ\",_xll.IDLSetValue(_xll.IDLPara(1,\"STLKZ\",Database,,,,,,,,,,,,,,,,,ValidFrom,Language,,,,,C17,B17),_xll.IDLPara(2,,A17)))","v":"STLKZ"}]
["AW","Aruba","ABW",{"$f":"IF(TRUE,\"STLKZ\",_xll.IDLSetValue(_xll.IDLPara(1,\"STLKZ\",Database,,,,,,,,,,,,,,,,,ValidFrom,Language,,,,,C18,B18),_xll.IDLPara(2,,A18)))","v":"STLKZ"}]
["AC","Ascension","ASC",{"$f":"IF(TRUE,\"STLKZ\",_xll.IDLSetValue(_xll.IDLPara(1,\"STLKZ\",Database,,,,,,,,,,,,,,,,,ValidFrom,Language,,,,,C19,B19),_xll.IDLPara(2,,A19)))","v":"STLKZ"}]
["AZ","Aserbaidschan","AZE",{"$f":"IF(TRUE,\"STLKZ\",_xll.IDLSetValue(_xll.IDLPara(1,\"STLKZ\",Database,,,,,,,,,,,,,,,,,ValidFrom,Language,,,,,C20,B20),_xll.IDLPara(2,,A20)))","v":"STLKZ"}]
["ET","Äthiopien","ETH",{"$f":"IF(TRUE,\"STLKZ\",_xll.IDLSetValue(_xll.IDLPara(1,\"STLKZ\",Database,,,,,,,,,,,,,,,,,ValidFrom,Language,,,,,C21,B21),_xll.IDLPara(2,,A21)))","v":"STLKZ"}]
["AU","Australien","AUS",{"$f":"IF(TRUE,\"STLKZ\",_xll.IDLSetValue(_xll.IDLPara(1,\"STLKZ\",Database,,,,,,,,,,,,,,,,,ValidFrom,Language,,,,,C22,B22),_xll.IDLPara(2,,A22)))","v":"STLKZ"}]
["BS","Bahamas","BAH",{"$f":"IF(TRUE,\"STLKZ\",_xll.IDLSetValue(_xll.IDLPara(1,\"STLKZ\",Database,,,,,,,,,,,,,,,,,ValidFrom,Language,,,,,C23,B23),_xll.IDLPara(2,,A23)))","v":"STLKZ"}]
["BH","Bahrain","BRN",{"$f":"IF(TRUE,\"STLKZ\",_xll.IDLSetValue(_xll.IDLPara(1,\"STLKZ\",Database,,,,,,,,,,,,,,,,,ValidFrom,Language,,,,,C24,B24),_xll.IDLPara(2,,A24)))","v":"STLKZ"}]
["BD","Bangladesch","BAN",{"$f":"IF(TRUE,\"STLKZ\",_xll.IDLSetValue(_xll.IDLPara(1,\"STLKZ\",Database,,,,,,,,,,,,,,,,,ValidFrom,Language,,,,,C25,B25),_xll.IDLPara(2,,A25)))","v":"STLKZ"}]
["BB","Barbados","BAR",{"$f":"IF(TRUE,\"STLKZ\",_xll.IDLSetValue(_xll.IDLPara(1,\"STLKZ\",Database,,,,,,,,,,,,,,,,,ValidFrom,Language,,,,,C26,B26),_xll.IDLPara(2,,A26)))","v":"STLKZ"}]
["BY","Belarus (Weißrussland)","BLR",{"$f":"IF(TRUE,\"STLKZ\",_xll.IDLSetValue(_xll.IDLPara(1,\"STLKZ\",Database,,,,,,,,,,,,,,,,,ValidFrom,Language,,,,,C27,B27),_xll.IDLPara(2,,A27)))","v":"STLKZ"}]
["BE","Belgien","BEL",{"$f":"IF(TRUE,\"STLKZ\",_xll.IDLSetValue(_xll.IDLPara(1,\"STLKZ\",Database,,,,,,,,,,,,,,,,,ValidFrom,Language,,,,,C28,B28),_xll.IDLPara(2,,A28)))","v":"STLKZ"}]
["BZ","Belize","BLZ",{"$f":"IF(TRUE,\"STLKZ\",_xll.IDLSetValue(_xll.IDLPara(1,\"STLKZ\",Database,,,,,,,,,,,,,,,,,ValidFrom,Language,,,,,C29,B29),_xll.IDLPara(2,,A29)))","v":"STLKZ"}]
["BJ","Benin","BEN",{"$f":"IF(TRUE,\"STLKZ\",_xll.IDLSetValue(_xll.IDLPara(1,\"STLKZ\",Database,,,,,,,,,,,,,,,,,ValidFrom,Language,,,,,C30,B30),_xll.IDLPara(2,,A30)))","v":"STLKZ"}]
["BM","Bermuda","BMU",{"$f":"IF(TRUE,\"STLKZ\",_xll.IDLSetValue(_xll.IDLPara(1,\"STLKZ\",Database,,,,,,,,,,,,,,,,,ValidFrom,Language,,,,,C31,B31),_xll.IDLPara(2,,A31)))","v":"STLKZ"}]
["BT","Bhutan","BTN",{"$f":"IF(TRUE,\"STLKZ\",_xll.IDLSetValue(_xll.IDLPara(1,\"STLKZ\",Database,,,,,,,,,,,,,,,,,ValidFrom,Language,,,,,C32,B32),_xll.IDLPara(2,,A32)))","v":"STLKZ"}]
["BO","Bolivien","BOL",{"$f":"IF(TRUE,\"STLKZ\",_xll.IDLSetValue(_xll.IDLPara(1,\"STLKZ\",Database,,,,,,,,,,,,,,,,,ValidFrom,Language,,,,,C33,B33),_xll.IDLPara(2,,A33)))","v":"STLKZ"}]
["BQ","Bonaire, Sint Eustatius und Saba (Niederlande)","BES",{"$f":"IF(TRUE,\"STLKZ\",_xll.IDLSetValue(_xll.IDLPara(1,\"STLKZ\",Database,,,,,,,,,,,,,,,,,ValidFrom,Language,,,,,C34,B34),_xll.IDLPara(2,,A34)))","v":"STLKZ"}]
["BA","Bosnien und Herzegowina","BIH",{"$f":"IF(TRUE,\"STLKZ\",_xll.IDLSetValue(_xll.IDLPara(1,\"STLKZ\",Database,,,,,,,,,,,,,,,,,ValidFrom,Language,,,,,C35,B35),_xll.IDLPara(2,,A35)))","v":"STLKZ"}]
["BW","Botswana","BWA",{"$f":"IF(TRUE,\"STLKZ\",_xll.IDLSetValue(_xll.IDLPara(1,\"STLKZ\",Database,,,,,,,,,,,,,,,,,ValidFrom,Language,,,,,C36,B36),_xll.IDLPara(2,,A36)))","v":"STLKZ"}]
["BV","Bouvetinsel","BVT",{"$f":"IF(TRUE,\"STLKZ\",_xll.IDLSetValue(_xll.IDLPara(1,\"STLKZ\",Database,,,,,,,,,,,,,,,,,ValidFrom,Language,,,,,C37,B37),_xll.IDLPara(2,,A37)))","v":"STLKZ"}]
["BR","Brasilien","BRA",{"$f":"IF(TRUE,\"STLKZ\",_xll.IDLSetValue(_xll.IDLPara(1,\"STLKZ\",Database,,,,,,,,,,,,,,,,,ValidFrom,Language,,,,,C38,B38),_xll.IDLPara(2,,A38)))","v":"STLKZ"}]
["VG","Britische Jungferninseln","VGB",{"$f":"IF(TRUE,\"STLKZ\",_xll.IDLSetValue(_xll.IDLPara(1,\"STLKZ\",Database,,,,,,,,,,,,,,,,,ValidFrom,Language,,,,,C39,B39),_xll.IDLPara(2,,A39)))","v":"STLKZ"}]
["IO","Britisches Territorium im Indischen Ozean","IOT",{"$f":"IF(TRUE,\"STLKZ\",_xll.IDLSetValue(_xll.IDLPara(1,\"STLKZ\",Database,,,,,,,,,,,,,,,,,ValidFrom,Language,,,,,C40,B40),_xll.IDLPara(2,,A40)))","v":"STLKZ"}]
["BN","Brunei Darussalam","BRN",{"$f":"IF(TRUE,\"STLKZ\",_xll.IDLSetValue(_xll.IDLPara(1,\"STLKZ\",Database,,,,,,,,,,,,,,,,,ValidFrom,Language,,,,,C41,B41),_xll.IDLPara(2,,A41)))","v":"STLKZ"}]
["BG","Bulgarien","BGR",{"$f":"IF(TRUE,\"STLKZ\",_xll.IDLSetValue(_xll.IDLPara(1,\"STLKZ\",Database,,,,,,,,,,,,,,,,,ValidFrom,Language,,,,,C42,B42),_xll.IDLPara(2,,A42)))","v":"STLKZ"}]
["BF","Burkina Faso","BFA",{"$f":"IF(TRUE,\"STLKZ\",_xll.IDLSetValue(_xll.IDLPara(1,\"STLKZ\",Database,,,,,,,,,,,,,,,,,ValidFrom,Language,,,,,C43,B43),_xll.IDLPara(2,,A43)))","v":"STLKZ"}]
["BU","Burma (jetzt Myanmar)","BUR",{"$f":"IF(TRUE,\"STLKZ\",_xll.IDLSetValue(_xll.IDLPara(1,\"STLKZ\",Database,,,,,,,,,,,,,,,,,ValidFrom,Language,,,,,C44,B44),_xll.IDLPara(2,,A44)))","v":"STLKZ"}]
["BI","Burundi","BDI",{"$f":"IF(TRUE,\"STLKZ\",_xll.IDLSetValue(_xll.IDLPara(1,\"STLKZ\",Database,,,,,,,,,,,,,,,,,ValidFrom,Language,,,,,C45,B45),_xll.IDLPara(2,,A45)))","v":"STLKZ"}]
["EA","Ceuta, Melilla",null,{"$f":"IF(TRUE,\"STLKZ\",_xll.IDLSetValue(_xll.IDLPara(1,\"STLKZ\",Database,,,,,,,,,,,,,,,,,ValidFrom,Language,,,,,C46,B46),_xll.IDLPara(2,,A46)))","v":"STLKZ"}]
["CL","Chile","CHL",{"$f":"IF(TRUE,\"STLKZ\",_xll.IDLSetValue(_xll.IDLPara(1,\"STLKZ\",Database,,,,,,,,,,,,,,,,,ValidFrom,Language,,,,,C47,B47),_xll.IDLPara(2,,A47)))","v":"STLKZ"}]
["CN","China, Volksrepublik","CHN",{"$f":"IF(TRUE,\"STLKZ\",_xll.IDLSetValue(_xll.IDLPara(1,\"STLKZ\",Database,,,,,,,,,,,,,,,,,ValidFrom,Language,,,,,C48,B48),_xll.IDLPara(2,,A48)))","v":"STLKZ"}]
["CP","Clipperton (reserviert für ITU)","CPT",{"$f":"IF(TRUE,\"STLKZ\",_xll.IDLSetValue(_xll.IDLPara(1,\"STLKZ\",Database,,,,,,,,,,,,,,,,,ValidFrom,Language,,,,,C49,B49),_xll.IDLPara(2,,A49)))","v":"STLKZ"}]
["CK","Cookinseln","COK",{"$f":"IF(TRUE,\"STLKZ\",_xll.IDLSetValue(_xll.IDLPara(1,\"STLKZ\",Database,,,,,,,,,,,,,,,,,ValidFrom,Language,,,,,C50,B50),_xll.IDLPara(2,,A50)))","v":"STLKZ"}]
["CR","Costa Rica","CRI",{"$f":"IF(TRUE,\"STLKZ\",_xll.IDLSetValue(_xll.IDLPara(1,\"STLKZ\",Database,,,,,,,,,,,,,,,,,ValidFrom,Language,,,,,C51,B51),_xll.IDLPara(2,,A51)))","v":"STLKZ"}]
["CI","Côte d’Ivoire (Elfenbeinküste)","CIV",{"$f":"IF(TRUE,\"STLKZ\",_xll.IDLSetValue(_xll.IDLPara(1,\"STLKZ\",Database,,,,,,,,,,,,,,,,,ValidFrom,Language,,,,,C52,B52),_xll.IDLPara(2,,A52)))","v":"STLKZ"}]
["CW","Curaçao","CUW",{"$f":"IF(TRUE,\"STLKZ\",_xll.IDLSetValue(_xll.IDLPara(1,\"STLKZ\",Database,,,,,,,,,,,,,,,,,ValidFrom,Language,,,,,C53,B53),_xll.IDLPara(2,,A53)))","v":"STLKZ"}]
["DK","Dänemark","DNK",{"$f":"IF(TRUE,\"STLKZ\",_xll.IDLSetValue(_xll.IDLPara(1,\"STLKZ\",Database,,,,,,,,,,,,,,,,,ValidFrom,Language,,,,,C54,B54),_xll.IDLPara(2,,A54)))","v":"STLKZ"}]
["DD","Deutsche Demokratische Republik (historisch)",null,{"$f":"IF(TRUE,\"STLKZ\",_xll.IDLSetValue(_xll.IDLPara(1,\"STLKZ\",Database,,,,,,,,,,,,,,,,,ValidFrom,Language,,,,,C55,B55),_xll.IDLPara(2,,A55)))","v":"STLKZ"}]
["DE","Deutschland","DEU",{"$f":"IF(TRUE,\"STLKZ\",_xll.IDLSetValue(_xll.IDLPara(1,\"STLKZ\",Database,,,,,,,,,,,,,,,,,ValidFrom,Language,,,,,C56,B56),_xll.IDLPara(2,,A56)))","v":"STLKZ"}]
["DG","Diego Garcia (reserviert für ITU)","DGA",{"$f":"IF(TRUE,\"STLKZ\",_xll.IDLSetValue(_xll.IDLPara(1,\"STLKZ\",Database,,,,,,,,,,,,,,,,,ValidFrom,Language,,,,,C57,B57),_xll.IDLPara(2,,A57)))","v":"STLKZ"}]
["DM","Dominica","DMA",{"$f":"IF(TRUE,\"STLKZ\",_xll.IDLSetValue(_xll.IDLPara(1,\"STLKZ\",Database,,,,,,,,,,,,,,,,,ValidFrom,Language,,,,,C58,B58),_xll.IDLPara(2,,A58)))","v":"STLKZ"}]
["DO","Dominikanische Republik","DOM",{"$f":"IF(TRUE,\"STLKZ\",_xll.IDLSetValue(_xll.IDLPara(1,\"STLKZ\",Database,,,,,,,,,,,,,,,,,ValidFrom,Language,,,,,C59,B59),_xll.IDLPara(2,,A59)))","v":"STLKZ"}]
["DJ","Dschibuti","DJI",{"$f":"IF(TRUE,\"STLKZ\",_xll.IDLSetValue(_xll.IDLPara(1,\"STLKZ\",Database,,,,,,,,,,,,,,,,,ValidFrom,Language,,,,,C60,B60),_xll.IDLPara(2,,A60)))","v":"STLKZ"}]
["EC","Ecuador","ECU",{"$f":"IF(TRUE,\"STLKZ\",_xll.IDLSetValue(_xll.IDLPara(1,\"STLKZ\",Database,,,,,,,,,,,,,,,,,ValidFrom,Language,,,,,C61,B61),_xll.IDLPara(2,,A61)))","v":"STLKZ"}]
["SV","El Salvador","SLV",{"$f":"IF(TRUE,\"STLKZ\",_xll.IDLSetValue(_xll.IDLPara(1,\"STLKZ\",Database,,,,,,,,,,,,,,,,,ValidFrom,Language,,,,,C62,B62),_xll.IDLPara(2,,A62)))","v":"STLKZ"}]
["ER","Eritrea","ERI",{"$f":"IF(TRUE,\"STLKZ\",_xll.IDLSetValue(_xll.IDLPara(1,\"STLKZ\",Database,,,,,,,,,,,,,,,,,ValidFrom,Language,,,,,C63,B63),_xll.IDLPara(2,,A63)))","v":"STLKZ"}]
["EE","Estland","EST",{"$f":"IF(TRUE,\"STLKZ\",_xll.IDLSetValue(_xll.IDLPara(1,\"STLKZ\",Database,,,,,,,,,,,,,,,,,ValidFrom,Language,,,,,C64,B64),_xll.IDLPara(2,,A64)))","v":"STLKZ"}]
["CE","Europäische Gemeinschaft","CEE",{"$f":"IF(TRUE,\"STLKZ\",_xll.IDLSetValue(_xll.IDLPara(1,\"STLKZ\",Database,,,,,,,,,,,,,,,,,ValidFrom,Language,,,,,C65,B65),_xll.IDLPara(2,,A65)))","v":"STLKZ"}]
["EU","Europäische Union",null,{"$f":"IF(TRUE,\"STLKZ\",_xll.IDLSetValue(_xll.IDLPara(1,\"STLKZ\",Database,,,,,,,,,,,,,,,,,ValidFrom,Language,,,,,C66,B66),_xll.IDLPara(2,,A66)))","v":"STLKZ"}]
["FK","Falklandinseln","FLK",{"$f":"IF(TRUE,\"STLKZ\",_xll.IDLSetValue(_xll.IDLPara(1,\"STLKZ\",Database,,,,,,,,,,,,,,,,,ValidFrom,Language,,,,,C67,B67),_xll.IDLPara(2,,A67)))","v":"STLKZ"}]
["FO","Färöer","FRO",{"$f":"IF(TRUE,\"STLKZ\",_xll.IDLSetValue(_xll.IDLPara(1,\"STLKZ\",Database,,,,,,,,,,,,,,,,,ValidFrom,Language,,,,,C68,B68),_xll.IDLPara(2,,A68)))","v":"STLKZ"}]
["FJ","Fidschi","FJI",{"$f":"IF(TRUE,\"STLKZ\",_xll.IDLSetValue(_xll.IDLPara(1,\"STLKZ\",Database,,,,,,,,,,,,,,,,,ValidFrom,Language,,,,,C69,B69),_xll.IDLPara(2,,A69)))","v":"STLKZ"}]
["FI ","Finnland","FIN",{"$f":"IF(TRUE,\"STLKZ\",_xll.IDLSetValue(_xll.IDLPara(1,\"STLKZ\",Database,,,,,,,,,,,,,,,,,ValidFrom,Language,,,,,C70,B70),_xll.IDLPara(2,,A70)))","v":"STLKZ"}]
["FR","Frankreich","FRA",{"$f":"IF(TRUE,\"STLKZ\",_xll.IDLSetValue(_xll.IDLPara(1,\"STLKZ\",Database,,,,,,,,,,,,,,,,,ValidFrom,Language,,,,,C71,B71),_xll.IDLPara(2,,A71)))","v":"STLKZ"}]
["FX","Frankreich, France métropolitaine","FXX",{"$f":"IF(TRUE,\"STLKZ\",_xll.IDLSetValue(_xll.IDLPara(1,\"STLKZ\",Database,,,,,,,,,,,,,,,,,ValidFrom,Language,,,,,C72,B72),_xll.IDLPara(2,,A72)))","v":"STLKZ"}]
["GF","Französisch-Guayana","GUF",{"$f":"IF(TRUE,\"STLKZ\",_xll.IDLSetValue(_xll.IDLPara(1,\"STLKZ\",Database,,,,,,,,,,,,,,,,,ValidFrom,Language,,,,,C73,B73),_xll.IDLPara(2,,A73)))","v":"STLKZ"}]
["PF","Französisch-Polynesien","PYF",{"$f":"IF(TRUE,\"STLKZ\",_xll.IDLSetValue(_xll.IDLPara(1,\"STLKZ\",Database,,,,,,,,,,,,,,,,,ValidFrom,Language,,,,,C74,B74),_xll.IDLPara(2,,A74)))","v":"STLKZ"}]
["TF","Französische Süd- und Antarktisgebiete","ATF",{"$f":"IF(TRUE,\"STLKZ\",_xll.IDLSetValue(_xll.IDLPara(1,\"STLKZ\",Database,,,,,,,,,,,,,,,,,ValidFrom,Language,,,,,C75,B75),_xll.IDLPara(2,,A75)))","v":"STLKZ"}]
["GA","Gabun","GAB",{"$f":"IF(TRUE,\"STLKZ\",_xll.IDLSetValue(_xll.IDLPara(1,\"STLKZ\",Database,,,,,,,,,,,,,,,,,ValidFrom,Language,,,,,C76,B76),_xll.IDLPara(2,,A76)))","v":"STLKZ"}]
["GM","Gambia","GMB",{"$f":"IF(TRUE,\"STLKZ\",_xll.IDLSetValue(_xll.IDLPara(1,\"STLKZ\",Database,,,,,,,,,,,,,,,,,ValidFrom,Language,,,,,C77,B77),_xll.IDLPara(2,,A77)))","v":"STLKZ"}]
["GE","Georgien","GEO",{"$f":"IF(TRUE,\"STLKZ\",_xll.IDLSetValue(_xll.IDLPara(1,\"STLKZ\",Database,,,,,,,,,,,,,,,,,ValidFrom,Language,,,,,C78,B78),_xll.IDLPara(2,,A78)))","v":"STLKZ"}]
["GH","Ghana","GHA",{"$f":"IF(TRUE,\"STLKZ\",_xll.IDLSetValue(_xll.IDLPara(1,\"STLKZ\",Database,,,,,,,,,,,,,,,,,ValidFrom,Language,,,,,C79,B79),_xll.IDLPara(2,,A79)))","v":"STLKZ"}]
["GI","Gibraltar","GIB",{"$f":"IF(TRUE,\"STLKZ\",_xll.IDLSetValue(_xll.IDLPara(1,\"STLKZ\",Database,,,,,,,,,,,,,,,,,ValidFrom,Language,,,,,C80,B80),_xll.IDLPara(2,,A80)))","v":"STLKZ"}]
["GD","Grenada","GRD",{"$f":"IF(TRUE,\"STLKZ\",_xll.IDLSetValue(_xll.IDLPara(1,\"STLKZ\",Database,,,,,,,,,,,,,,,,,ValidFrom,Language,,,,,C81,B81),_xll.IDLPara(2,,A81)))","v":"STLKZ"}]
["GR","Griechenland","GRC",{"$f":"IF(TRUE,\"STLKZ\",_xll.IDLSetValue(_xll.IDLPara(1,\"STLKZ\",Database,,,,,,,,,,,,,,,,,ValidFrom,Language,,,,,C82,B82),_xll.IDLPara(2,,A82)))","v":"STLKZ"}]
["GL","Grönland","GRL",{"$f":"IF(TRUE,\"STLKZ\",_xll.IDLSetValue(_xll.IDLPara(1,\"STLKZ\",Database,,,,,,,,,,,,,,,,,ValidFrom,Language,,,,,C83,B83),_xll.IDLPara(2,,A83)))","v":"STLKZ"}]
["GP","Guadeloupe","GLP",{"$f":"IF(TRUE,\"STLKZ\",_xll.IDLSetValue(_xll.IDLPara(1,\"STLKZ\",Database,,,,,,,,,,,,,,,,,ValidFrom,Language,,,,,C84,B84),_xll.IDLPara(2,,A84)))","v":"STLKZ"}]
["GU","Guam","GUM",{"$f":"IF(TRUE,\"STLKZ\",_xll.IDLSetValue(_xll.IDLPara(1,\"STLKZ\",Database,,,,,,,,,,,,,,,,,ValidFrom,Language,,,,,C85,B85),_xll.IDLPara(2,,A85)))","v":"STLKZ"}]
["GT","Guatemala","GTM",{"$f":"IF(TRUE,\"STLKZ\",_xll.IDLSetValue(_xll.IDLPara(1,\"STLKZ\",Database,,,,,,,,,,,,,,,,,ValidFrom,Language,,,,,C86,B86),_xll.IDLPara(2,,A86)))","v":"STLKZ"}]
["GG","Guernsey (Kanalinsel)","GGY",{"$f":"IF(TRUE,\"STLKZ\",_xll.IDLSetValue(_xll.IDLPara(1,\"STLKZ\",Database,,,,,,,,,,,,,,,,,ValidFrom,Language,,,,,C87,B87),_xll.IDLPara(2,,A87)))","v":"STLKZ"}]
["GN","Guinea","GIN",{"$f":"IF(TRUE,\"STLKZ\",_xll.IDLSetValue(_xll.IDLPara(1,\"STLKZ\",Database,,,,,,,,,,,,,,,,,ValidFrom,Language,,,,,C88,B88),_xll.IDLPara(2,,A88)))","v":"STLKZ"}]
["GW","Guinea-Bissau","GNB",{"$f":"IF(TRUE,\"STLKZ\",_xll.IDLSetValue(_xll.IDLPara(1,\"STLKZ\",Database,,,,,,,,,,,,,,,,,ValidFrom,Language,,,,,C89,B89),_xll.IDLPara(2,,A89)))","v":"STLKZ"}]
["GY","Guyana","GUY",{"$f":"IF(TRUE,\"STLKZ\",_xll.IDLSetValue(_xll.IDLPara(1,\"STLKZ\",Database,,,,,,,,,,,,,,,,,ValidFrom,Language,,,,,C90,B90),_xll.IDLPara(2,,A90)))","v":"STLKZ"}]
["HT","Haiti","HTI",{"$f":"IF(TRUE,\"STLKZ\",_xll.IDLSetValue(_xll.IDLPara(1,\"STLKZ\",Database,,,,,,,,,,,,,,,,,ValidFrom,Language,,,,,C91,B91),_xll.IDLPara(2,,A91)))","v":"STLKZ"}]
["HM","Heard und McDonaldinseln","HMD",{"$f":"IF(TRUE,\"STLKZ\",_xll.IDLSetValue(_xll.IDLPara(1,\"STLKZ\",Database,,,,,,,,,,,,,,,,,ValidFrom,Language,,,,,C92,B92),_xll.IDLPara(2,,A92)))","v":"STLKZ"}]
["HN","Honduras","HND",{"$f":"IF(TRUE,\"STLKZ\",_xll.IDLSetValue(_xll.IDLPara(1,\"STLKZ\",Database,,,,,,,,,,,,,,,,,ValidFrom,Language,,,,,C93,B93),_xll.IDLPara(2,,A93)))","v":"STLKZ"}]
["HK","Hongkong","HKG",{"$f":"IF(TRUE,\"STLKZ\",_xll.IDLSetValue(_xll.IDLPara(1,\"STLKZ\",Database,,,,,,,,,,,,,,,,,ValidFrom,Language,,,,,C94,B94),_xll.IDLPara(2,,A94)))","v":"STLKZ"}]
["IN","Indien","IND",{"$f":"IF(TRUE,\"STLKZ\",_xll.IDLSetValue(_xll.IDLPara(1,\"STLKZ\",Database,,,,,,,,,,,,,,,,,ValidFrom,Language,,,,,C95,B95),_xll.IDLPara(2,,A95)))","v":"STLKZ"}]
["ID","Indonesien","IDN",{"$f":"IF(TRUE,\"STLKZ\",_xll.IDLSetValue(_xll.IDLPara(1,\"STLKZ\",Database,,,,,,,,,,,,,,,,,ValidFrom,Language,,,,,C96,B96),_xll.IDLPara(2,,A96)))","v":"STLKZ"}]
["IM","Insel Man","IMN",{"$f":"IF(TRUE,\"STLKZ\",_xll.IDLSetValue(_xll.IDLPara(1,\"STLKZ\",Database,,,,,,,,,,,,,,,,,ValidFrom,Language,,,,,C97,B97),_xll.IDLPara(2,,A97)))","v":"STLKZ"}]
["IQ","Irak","IRQ",{"$f":"IF(TRUE,\"STLKZ\",_xll.IDLSetValue(_xll.IDLPara(1,\"STLKZ\",Database,,,,,,,,,,,,,,,,,ValidFrom,Language,,,,,C98,B98),_xll.IDLPara(2,,A98)))","v":"STLKZ"}]
["IR","Iran, Islamische Republik","IRN",{"$f":"IF(TRUE,\"STLKZ\",_xll.IDLSetValue(_xll.IDLPara(1,\"STLKZ\",Database,,,,,,,,,,,,,,,,,ValidFrom,Language,,,,,C99,B99),_xll.IDLPara(2,,A99)))","v":"STLKZ"}]
["IE","Irland","IRL",{"$f":"IF(TRUE,\"STLKZ\",_xll.IDLSetValue(_xll.IDLPara(1,\"STLKZ\",Database,,,,,,,,,,,,,,,,,ValidFrom,Language,,,,,C100,B100),_xll.IDLPara(2,,A100)))","v":"STLKZ"}]
["IS","Island","ISL",{"$f":"IF(TRUE,\"STLKZ\",_xll.IDLSetValue(_xll.IDLPara(1,\"STLKZ\",Database,,,,,,,,,,,,,,,,,ValidFrom,Language,,,,,C101,B101),_xll.IDLPara(2,,A101)))","v":"STLKZ"}]
["IL","Israel","ISR",{"$f":"IF(TRUE,\"STLKZ\",_xll.IDLSetValue(_xll.IDLPara(1,\"STLKZ\",Database,,,,,,,,,,,,,,,,,ValidFrom,Language,,,,,C102,B102),_xll.IDLPara(2,,A102)))","v":"STLKZ"}]
["IT","Italien","ITA",{"$f":"IF(TRUE,\"STLKZ\",_xll.IDLSetValue(_xll.IDLPara(1,\"STLKZ\",Database,,,,,,,,,,,,,,,,,ValidFrom,Language,,,,,C103,B103),_xll.IDLPara(2,,A103)))","v":"STLKZ"}]
["JM","Jamaika","JAM",{"$f":"IF(TRUE,\"STLKZ\",_xll.IDLSetValue(_xll.IDLPara(1,\"STLKZ\",Database,,,,,,,,,,,,,,,,,ValidFrom,Language,,,,,C104,B104),_xll.IDLPara(2,,A104)))","v":"STLKZ"}]
["JP","Japan","JPN",{"$f":"IF(TRUE,\"STLKZ\",_xll.IDLSetValue(_xll.IDLPara(1,\"STLKZ\",Database,,,,,,,,,,,,,,,,,ValidFrom,Language,,,,,C105,B105),_xll.IDLPara(2,,A105)))","v":"STLKZ"}]
["YE","Jemen","YEM",{"$f":"IF(TRUE,\"STLKZ\",_xll.IDLSetValue(_xll.IDLPara(1,\"STLKZ\",Database,,,,,,,,,,,,,,,,,ValidFrom,Language,,,,,C106,B106),_xll.IDLPara(2,,A106)))","v":"STLKZ"}]
["JE","Jersey (Kanalinsel)","JEY",{"$f":"IF(TRUE,\"STLKZ\",_xll.IDLSetValue(_xll.IDLPara(1,\"STLKZ\",Database,,,,,,,,,,,,,,,,,ValidFrom,Language,,,,,C107,B107),_xll.IDLPara(2,,A107)))","v":"STLKZ"}]
["JO","Jordanien","JOR",{"$f":"IF(TRUE,\"STLKZ\",_xll.IDLSetValue(_xll.IDLPara(1,\"STLKZ\",Database,,,,,,,,,,,,,,,,,ValidFrom,Language,,,,,C108,B108),_xll.IDLPara(2,,A108)))","v":"STLKZ"}]
["YU","Jugoslawien (ehemalig)","YUG",{"$f":"IF(TRUE,\"STLKZ\",_xll.IDLSetValue(_xll.IDLPara(1,\"STLKZ\",Database,,,,,,,,,,,,,,,,,ValidFrom,Language,,,,,C109,B109),_xll.IDLPara(2,,A109)))","v":"STLKZ"}]
["KY","Kaimaninseln","CYM",{"$f":"IF(TRUE,\"STLKZ\",_xll.IDLSetValue(_xll.IDLPara(1,\"STLKZ\",Database,,,,,,,,,,,,,,,,,ValidFrom,Language,,,,,C110,B110),_xll.IDLPara(2,,A110)))","v":"STLKZ"}]
["KH","Kambodscha","KHM",{"$f":"IF(TRUE,\"STLKZ\",_xll.IDLSetValue(_xll.IDLPara(1,\"STLKZ\",Database,,,,,,,,,,,,,,,,,ValidFrom,Language,,,,,C111,B111),_xll.IDLPara(2,,A111)))","v":"STLKZ"}]
["CM","Kamerun","CMR",{"$f":"IF(TRUE,\"STLKZ\",_xll.IDLSetValue(_xll.IDLPara(1,\"STLKZ\",Database,,,,,,,,,,,,,,,,,ValidFrom,Language,,,,,C112,B112),_xll.IDLPara(2,,A112)))","v":"STLKZ"}]
["CA","Kanada","CAN",{"$f":"IF(TRUE,\"STLKZ\",_xll.IDLSetValue(_xll.IDLPara(1,\"STLKZ\",Database,,,,,,,,,,,,,,,,,ValidFrom,Language,,,,,C113,B113),_xll.IDLPara(2,,A113)))","v":"STLKZ"}]
["IC","Kanarische Inseln",null,{"$f":"IF(TRUE,\"STLKZ\",_xll.IDLSetValue(_xll.IDLPara(1,\"STLKZ\",Database,,,,,,,,,,,,,,,,,ValidFrom,Language,,,,,C114,B114),_xll.IDLPara(2,,A114)))","v":"STLKZ"}]
["CV","Kap Verde","CPV",{"$f":"IF(TRUE,\"STLKZ\",_xll.IDLSetValue(_xll.IDLPara(1,\"STLKZ\",Database,,,,,,,,,,,,,,,,,ValidFrom,Language,,,,,C115,B115),_xll.IDLPara(2,,A115)))","v":"STLKZ"}]
["KZ","Kasachstan","KAZ",{"$f":"IF(TRUE,\"STLKZ\",_xll.IDLSetValue(_xll.IDLPara(1,\"STLKZ\",Database,,,,,,,,,,,,,,,,,ValidFrom,Language,,,,,C116,B116),_xll.IDLPara(2,,A116)))","v":"STLKZ"}]
["QA","Katar","QAT",{"$f":"IF(TRUE,\"STLKZ\",_xll.IDLSetValue(_xll.IDLPara(1,\"STLKZ\",Database,,,,,,,,,,,,,,,,,ValidFrom,Language,,,,,C117,B117),_xll.IDLPara(2,,A117)))","v":"STLKZ"}]
["KE","Kenia","KEN",{"$f":"IF(TRUE,\"STLKZ\",_xll.IDLSetValue(_xll.IDLPara(1,\"STLKZ\",Database,,,,,,,,,,,,,,,,,ValidFrom,Language,,,,,C118,B118),_xll.IDLPara(2,,A118)))","v":"STLKZ"}]
["KG","Kirgisistan","KGZ",{"$f":"IF(TRUE,\"STLKZ\",_xll.IDLSetValue(_xll.IDLPara(1,\"STLKZ\",Database,,,,,,,,,,,,,,,,,ValidFrom,Language,,,,,C119,B119),_xll.IDLPara(2,,A119)))","v":"STLKZ"}]
["KI","Kiribati","KIR",{"$f":"IF(TRUE,\"STLKZ\",_xll.IDLSetValue(_xll.IDLPara(1,\"STLKZ\",Database,,,,,,,,,,,,,,,,,ValidFrom,Language,,,,,C120,B120),_xll.IDLPara(2,,A120)))","v":"STLKZ"}]
["CC","Kokosinseln","CCK",{"$f":"IF(TRUE,\"STLKZ\",_xll.IDLSetValue(_xll.IDLPara(1,\"STLKZ\",Database,,,,,,,,,,,,,,,,,ValidFrom,Language,,,,,C121,B121),_xll.IDLPara(2,,A121)))","v":"STLKZ"}]
["CO","Kolumbien","COL",{"$f":"IF(TRUE,\"STLKZ\",_xll.IDLSetValue(_xll.IDLPara(1,\"STLKZ\",Database,,,,,,,,,,,,,,,,,ValidFrom,Language,,,,,C122,B122),_xll.IDLPara(2,,A122)))","v":"STLKZ"}]
["KM","Komoren","COM",{"$f":"IF(TRUE,\"STLKZ\",_xll.IDLSetValue(_xll.IDLPara(1,\"STLKZ\",Database,,,,,,,,,,,,,,,,,ValidFrom,Language,,,,,C123,B123),_xll.IDLPara(2,,A123)))","v":"STLKZ"}]
["CD","Kongo, Demokratische Republik (ehem. Zaire)","COD",{"$f":"IF(TRUE,\"STLKZ\",_xll.IDLSetValue(_xll.IDLPara(1,\"STLKZ\",Database,,,,,,,,,,,,,,,,,ValidFrom,Language,,,,,C124,B124),_xll.IDLPara(2,,A124)))","v":"STLKZ"}]
["CG","Republik Kongo","COG",{"$f":"IF(TRUE,\"STLKZ\",_xll.IDLSetValue(_xll.IDLPara(1,\"STLKZ\",Database,,,,,,,,,,,,,,,,,ValidFrom,Language,,,,,C125,B125),_xll.IDLPara(2,,A125)))","v":"STLKZ"}]
["KP","Korea, Demokratische Volksrepublik (Nordkorea)","PRK",{"$f":"IF(TRUE,\"STLKZ\",_xll.IDLSetValue(_xll.IDLPara(1,\"STLKZ\",Database,,,,,,,,,,,,,,,,,ValidFrom,Language,,,,,C126,B126),_xll.IDLPara(2,,A126)))","v":"STLKZ"}]
["KR","Korea, Republik (Südkorea)","KOR",{"$f":"IF(TRUE,\"STLKZ\",_xll.IDLSetValue(_xll.IDLPara(1,\"STLKZ\",Database,,,,,,,,,,,,,,,,,ValidFrom,Language,,,,,C127,B127),_xll.IDLPara(2,,A127)))","v":"STLKZ"}]
["HR","Kroatien","HRV",{"$f":"IF(TRUE,\"STLKZ\",_xll.IDLSetValue(_xll.IDLPara(1,\"STLKZ\",Database,,,,,,,,,,,,,,,,,ValidFrom,Language,,,,,C128,B128),_xll.IDLPara(2,,A128)))","v":"STLKZ"}]
["CU","Kuba","CUB",{"$f":"IF(TRUE,\"STLKZ\",_xll.IDLSetValue(_xll.IDLPara(1,\"STLKZ\",Database,,,,,,,,,,,,,,,,,ValidFrom,Language,,,,,C129,B129),_xll.IDLPara(2,,A129)))","v":"STLKZ"}]
["KW","Kuwait","KWT",{"$f":"IF(TRUE,\"STLKZ\",_xll.IDLSetValue(_xll.IDLPara(1,\"STLKZ\",Database,,,,,,,,,,,,,,,,,ValidFrom,Language,,,,,C130,B130),_xll.IDLPara(2,,A130)))","v":"STLKZ"}]
["LA","Laos, Demokratische Volksrepublik","LAO",{"$f":"IF(TRUE,\"STLKZ\",_xll.IDLSetValue(_xll.IDLPara(1,\"STLKZ\",Database,,,,,,,,,,,,,,,,,ValidFrom,Language,,,,,C131,B131),_xll.IDLPara(2,,A131)))","v":"STLKZ"}]
["LS","Lesotho","LSO",{"$f":"IF(TRUE,\"STLKZ\",_xll.IDLSetValue(_xll.IDLPara(1,\"STLKZ\",Database,,,,,,,,,,,,,,,,,ValidFrom,Language,,,,,C132,B132),_xll.IDLPara(2,,A132)))","v":"STLKZ"}]
["LV","Lettland","LVA",{"$f":"IF(TRUE,\"STLKZ\",_xll.IDLSetValue(_xll.IDLPara(1,\"STLKZ\",Database,,,,,,,,,,,,,,,,,ValidFrom,Language,,,,,C133,B133),_xll.IDLPara(2,,A133)))","v":"STLKZ"}]
["LB","Libanon","LBN",{"$f":"IF(TRUE,\"STLKZ\",_xll.IDLSetValue(_xll.IDLPara(1,\"STLKZ\",Database,,,,,,,,,,,,,,,,,ValidFrom,Language,,,,,C134,B134),_xll.IDLPara(2,,A134)))","v":"STLKZ"}]
["LR","Liberia","LBR",{"$f":"IF(TRUE,\"STLKZ\",_xll.IDLSetValue(_xll.IDLPara(1,\"STLKZ\",Database,,,,,,,,,,,,,,,,,ValidFrom,Language,,,,,C135,B135),_xll.IDLPara(2,,A135)))","v":"STLKZ"}]
["LY","Libyen","LBY",{"$f":"IF(TRUE,\"STLKZ\",_xll.IDLSetValue(_xll.IDLPara(1,\"STLKZ\",Database,,,,,,,,,,,,,,,,,ValidFrom,Language,,,,,C136,B136),_xll.IDLPara(2,,A136)))","v":"STLKZ"}]
["LI","Liechtenstein","LIE",{"$f":"IF(TRUE,\"STLKZ\",_xll.IDLSetValue(_xll.IDLPara(1,\"STLKZ\",Database,,,,,,,,,,,,,,,,,ValidFrom,Language,,,,,C137,B137),_xll.IDLPara(2,,A137)))","v":"STLKZ"}]
["LT","Litauen","LTU",{"$f":"IF(TRUE,\"STLKZ\",_xll.IDLSetValue(_xll.IDLPara(1,\"STLKZ\",Database,,,,,,,,,,,,,,,,,ValidFrom,Language,,,,,C138,B138),_xll.IDLPara(2,,A138)))","v":"STLKZ"}]
["LU","Luxemburg","LUX",{"$f":"IF(TRUE,\"STLKZ\",_xll.IDLSetValue(_xll.IDLPara(1,\"STLKZ\",Database,,,,,,,,,,,,,,,,,ValidFrom,Language,,,,,C139,B139),_xll.IDLPara(2,,A139)))","v":"STLKZ"}]
["MO","Macau","MAC",{"$f":"IF(TRUE,\"STLKZ\",_xll.IDLSetValue(_xll.IDLPara(1,\"STLKZ\",Database,,,,,,,,,,,,,,,,,ValidFrom,Language,,,,,C140,B140),_xll.IDLPara(2,,A140)))","v":"STLKZ"}]
["MG","Madagaskar","MDG",{"$f":"IF(TRUE,\"STLKZ\",_xll.IDLSetValue(_xll.IDLPara(1,\"STLKZ\",Database,,,,,,,,,,,,,,,,,ValidFrom,Language,,,,,C141,B141),_xll.IDLPara(2,,A141)))","v":"STLKZ"}]
["MW","Malawi","MWI",{"$f":"IF(TRUE,\"STLKZ\",_xll.IDLSetValue(_xll.IDLPara(1,\"STLKZ\",Database,,,,,,,,,,,,,,,,,ValidFrom,Language,,,,,C142,B142),_xll.IDLPara(2,,A142)))","v":"STLKZ"}]
["MY","Malaysia","MYS",{"$f":"IF(TRUE,\"STLKZ\",_xll.IDLSetValue(_xll.IDLPara(1,\"STLKZ\",Database,,,,,,,,,,,,,,,,,ValidFrom,Language,,,,,C143,B143),_xll.IDLPara(2,,A143)))","v":"STLKZ"}]
["MV","Malediven","MDV",{"$f":"IF(TRUE,\"STLKZ\",_xll.IDLSetValue(_xll.IDLPara(1,\"STLKZ\",Database,,,,,,,,,,,,,,,,,ValidFrom,Language,,,,,C144,B144),_xll.IDLPara(2,,A144)))","v":"STLKZ"}]
["ML","Mali","MLI",{"$f":"IF(TRUE,\"STLKZ\",_xll.IDLSetValue(_xll.IDLPara(1,\"STLKZ\",Database,,,,,,,,,,,,,,,,,ValidFrom,Language,,,,,C145,B145),_xll.IDLPara(2,,A145)))","v":"STLKZ"}]
["MT","Malta","MLT",{"$f":"IF(TRUE,\"STLKZ\",_xll.IDLSetValue(_xll.IDLPara(1,\"STLKZ\",Database,,,,,,,,,,,,,,,,,ValidFrom,Language,,,,,C146,B146),_xll.IDLPara(2,,A146)))","v":"STLKZ"}]
["MA","Marokko","MAR",{"$f":"IF(TRUE,\"STLKZ\",_xll.IDLSetValue(_xll.IDLPara(1,\"STLKZ\",Database,,,,,,,,,,,,,,,,,ValidFrom,Language,,,,,C147,B147),_xll.IDLPara(2,,A147)))","v":"STLKZ"}]
["MH","Marshallinseln","MHL",{"$f":"IF(TRUE,\"STLKZ\",_xll.IDLSetValue(_xll.IDLPara(1,\"STLKZ\",Database,,,,,,,,,,,,,,,,,ValidFrom,Language,,,,,C148,B148),_xll.IDLPara(2,,A148)))","v":"STLKZ"}]
["MQ","Martinique","MTQ",{"$f":"IF(TRUE,\"STLKZ\",_xll.IDLSetValue(_xll.IDLPara(1,\"STLKZ\",Database,,,,,,,,,,,,,,,,,ValidFrom,Language,,,,,C149,B149),_xll.IDLPara(2,,A149)))","v":"STLKZ"}]
["MR","Mauretanien","MRT",{"$f":"IF(TRUE,\"STLKZ\",_xll.IDLSetValue(_xll.IDLPara(1,\"STLKZ\",Database,,,,,,,,,,,,,,,,,ValidFrom,Language,,,,,C150,B150),_xll.IDLPara(2,,A150)))","v":"STLKZ"}]
["MU","Mauritius","MUS",{"$f":"IF(TRUE,\"STLKZ\",_xll.IDLSetValue(_xll.IDLPara(1,\"STLKZ\",Database,,,,,,,,,,,,,,,,,ValidFrom,Language,,,,,C151,B151),_xll.IDLPara(2,,A151)))","v":"STLKZ"}]
["YT","Mayotte","MYT",{"$f":"IF(TRUE,\"STLKZ\",_xll.IDLSetValue(_xll.IDLPara(1,\"STLKZ\",Database,,,,,,,,,,,,,,,,,ValidFrom,Language,,,,,C152,B152),_xll.IDLPara(2,,A152)))","v":"STLKZ"}]
["MK","Mazedonien","MKD",{"$f":"IF(TRUE,\"STLKZ\",_xll.IDLSetValue(_xll.IDLPara(1,\"STLKZ\",Database,,,,,,,,,,,,,,,,,ValidFrom,Language,,,,,C153,B153),_xll.IDLPara(2,,A153)))","v":"STLKZ"}]
["MX","Mexiko","MEX",{"$f":"IF(TRUE,\"STLKZ\",_xll.IDLSetValue(_xll.IDLPara(1,\"STLKZ\",Database,,,,,,,,,,,,,,,,,ValidFrom,Language,,,,,C154,B154),_xll.IDLPara(2,,A154)))","v":"STLKZ"}]
["FM","Mikronesien","FSM",{"$f":"IF(TRUE,\"STLKZ\",_xll.IDLSetValue(_xll.IDLPara(1,\"STLKZ\",Database,,,,,,,,,,,,,,,,,ValidFrom,Language,,,,,C155,B155),_xll.IDLPara(2,,A155)))","v":"STLKZ"}]
["MD","Moldawien (Republik Moldau)","MDA",{"$f":"IF(TRUE,\"STLKZ\",_xll.IDLSetValue(_xll.IDLPara(1,\"STLKZ\",Database,,,,,,,,,,,,,,,,,ValidFrom,Language,,,,,C156,B156),_xll.IDLPara(2,,A156)))","v":"STLKZ"}]
["MC","Monaco","MCO",{"$f":"IF(TRUE,\"STLKZ\",_xll.IDLSetValue(_xll.IDLPara(1,\"STLKZ\",Database,,,,,,,,,,,,,,,,,ValidFrom,Language,,,,,C157,B157),_xll.IDLPara(2,,A157)))","v":"STLKZ"}]
["MN","Mongolei","MNG",{"$f":"IF(TRUE,\"STLKZ\",_xll.IDLSetValue(_xll.IDLPara(1,\"STLKZ\",Database,,,,,,,,,,,,,,,,,ValidFrom,Language,,,,,C158,B158),_xll.IDLPara(2,,A158)))","v":"STLKZ"}]
["ME","Montenegro","MNE",{"$f":"IF(TRUE,\"STLKZ\",_xll.IDLSetValue(_xll.IDLPara(1,\"STLKZ\",Database,,,,,,,,,,,,,,,,,ValidFrom,Language,,,,,C159,B159),_xll.IDLPara(2,,A159)))","v":"STLKZ"}]
["MH","Marshallinseln","MHL",{"$f":"IF(TRUE,\"STLKZ\",_xll.IDLSetValue(_xll.IDLPara(1,\"STLKZ\",Database,,,,,,,,,,,,,,,,,ValidFrom,Language,,,,,C160,B160),_xll.IDLPara(2,,A160)))","v":"STLKZ"}]
["MQ","Martinique","MTQ",{"$f":"IF(TRUE,\"STLKZ\",_xll.IDLSetValue(_xll.IDLPara(1,\"STLKZ\",Database,,,,,,,,,,,,,,,,,ValidFrom,Language,,,,,C161,B161),_xll.IDLPara(2,,A161)))","v":"STLKZ"}]
["MR","Mauretanien","MRT",{"$f":"IF(TRUE,\"STLKZ\",_xll.IDLSetValue(_xll.IDLPara(1,\"STLKZ\",Database,,,,,,,,,,,,,,,,,ValidFrom,Language,,,,,C162,B162),_xll.IDLPara(2,,A162)))","v":"STLKZ"}]
["MU","Mauritius","MUS",{"$f":"IF(TRUE,\"STLKZ\",_xll.IDLSetValue(_xll.IDLPara(1,\"STLKZ\",Database,,,,,,,,,,,,,,,,,ValidFrom,Language,,,,,C163,B163),_xll.IDLPara(2,,A163)))","v":"STLKZ"}]
["YT","Mayotte","MYT",{"$f":"IF(TRUE,\"STLKZ\",_xll.IDLSetValue(_xll.IDLPara(1,\"STLKZ\",Database,,,,,,,,,,,,,,,,,ValidFrom,Language,,,,,C164,B164),_xll.IDLPara(2,,A164)))","v":"STLKZ"}]
["MK","Mazedonien","MKD",{"$f":"IF(TRUE,\"STLKZ\",_xll.IDLSetValue(_xll.IDLPara(1,\"STLKZ\",Database,,,,,,,,,,,,,,,,,ValidFrom,Language,,,,,C165,B165),_xll.IDLPara(2,,A165)))","v":"STLKZ"}]
["MX","Mexiko","MEX",{"$f":"IF(TRUE,\"STLKZ\",_xll.IDLSetValue(_xll.IDLPara(1,\"STLKZ\",Database,,,,,,,,,,,,,,,,,ValidFrom,Language,,,,,C166,B166),_xll.IDLPara(2,,A166)))","v":"STLKZ"}]
["FM","Mikronesien","FSM",{"$f":"IF(TRUE,\"STLKZ\",_xll.IDLSetValue(_xll.IDLPara(1,\"STLKZ\",Database,,,,,,,,,,,,,,,,,ValidFrom,Language,,,,,C167,B167),_xll.IDLPara(2,,A167)))","v":"STLKZ"}]
["MD","Moldawien (Republik Moldau)","MDA",{"$f":"IF(TRUE,\"STLKZ\",_xll.IDLSetValue(_xll.IDLPara(1,\"STLKZ\",Database,,,,,,,,,,,,,,,,,ValidFrom,Language,,,,,C168,B168),_xll.IDLPara(2,,A168)))","v":"STLKZ"}]
["MC","Monaco","MCO",{"$f":"IF(TRUE,\"STLKZ\",_xll.IDLSetValue(_xll.IDLPara(1,\"STLKZ\",Database,,,,,,,,,,,,,,,,,ValidFrom,Language,,,,,C169,B169),_xll.IDLPara(2,,A169)))","v":"STLKZ"}]
["MN","Mongolei","MNG",{"$f":"IF(TRUE,\"STLKZ\",_xll.IDLSetValue(_xll.IDLPara(1,\"STLKZ\",Database,,,,,,,,,,,,,,,,,ValidFrom,Language,,,,,C170,B170),_xll.IDLPara(2,,A170)))","v":"STLKZ"}]
["ME","Montenegro","MNE",{"$f":"IF(TRUE,\"STLKZ\",_xll.IDLSetValue(_xll.IDLPara(1,\"STLKZ\",Database,,,,,,,,,,,,,,,,,ValidFrom,Language,,,,,C171,B171),_xll.IDLPara(2,,A171)))","v":"STLKZ"}]
["MS","Montserrat","MSR",{"$f":"IF(TRUE,\"STLKZ\",_xll.IDLSetValue(_xll.IDLPara(1,\"STLKZ\",Database,,,,,,,,,,,,,,,,,ValidFrom,Language,,,,,C172,B172),_xll.IDLPara(2,,A172)))","v":"STLKZ"}]
["MZ","Mosambik","MOZ",{"$f":"IF(TRUE,\"STLKZ\",_xll.IDLSetValue(_xll.IDLPara(1,\"STLKZ\",Database,,,,,,,,,,,,,,,,,ValidFrom,Language,,,,,C173,B173),_xll.IDLPara(2,,A173)))","v":"STLKZ"}]
["MM","Myanmar (Burma)","MMR",{"$f":"IF(TRUE,\"STLKZ\",_xll.IDLSetValue(_xll.IDLPara(1,\"STLKZ\",Database,,,,,,,,,,,,,,,,,ValidFrom,Language,,,,,C174,B174),_xll.IDLPara(2,,A174)))","v":"STLKZ"}]
["NA","Namibia","NAM",{"$f":"IF(TRUE,\"STLKZ\",_xll.IDLSetValue(_xll.IDLPara(1,\"STLKZ\",Database,,,,,,,,,,,,,,,,,ValidFrom,Language,,,,,C175,B175),_xll.IDLPara(2,,A175)))","v":"STLKZ"}]
["NR","Nauru","NRU",{"$f":"IF(TRUE,\"STLKZ\",_xll.IDLSetValue(_xll.IDLPara(1,\"STLKZ\",Database,,,,,,,,,,,,,,,,,ValidFrom,Language,,,,,C176,B176),_xll.IDLPara(2,,A176)))","v":"STLKZ"}]
["NP","Nepal","NPL",{"$f":"IF(TRUE,\"STLKZ\",_xll.IDLSetValue(_xll.IDLPara(1,\"STLKZ\",Database,,,,,,,,,,,,,,,,,ValidFrom,Language,,,,,C177,B177),_xll.IDLPara(2,,A177)))","v":"STLKZ"}]
["NC","Neukaledonien","NCL",{"$f":"IF(TRUE,\"STLKZ\",_xll.IDLSetValue(_xll.IDLPara(1,\"STLKZ\",Database,,,,,,,,,,,,,,,,,ValidFrom,Language,,,,,C178,B178),_xll.IDLPara(2,,A178)))","v":"STLKZ"}]
["NZ","Neuseeland","NZL",{"$f":"IF(TRUE,\"STLKZ\",_xll.IDLSetValue(_xll.IDLPara(1,\"STLKZ\",Database,,,,,,,,,,,,,,,,,ValidFrom,Language,,,,,C179,B179),_xll.IDLPara(2,,A179)))","v":"STLKZ"}]
["NT","Neutrale Zone (Saudi-Arabien und Irak bis 1993)","NTZ",{"$f":"IF(TRUE,\"STLKZ\",_xll.IDLSetValue(_xll.IDLPara(1,\"STLKZ\",Database,,,,,,,,,,,,,,,,,ValidFrom,Language,,,,,C180,B180),_xll.IDLPara(2,,A180)))","v":"STLKZ"}]
["NI","Nicaragua","NIC",{"$f":"IF(TRUE,\"STLKZ\",_xll.IDLSetValue(_xll.IDLPara(1,\"STLKZ\",Database,,,,,,,,,,,,,,,,,ValidFrom,Language,,,,,C181,B181),_xll.IDLPara(2,,A181)))","v":"STLKZ"}]
["NL","Niederlande","NLD",{"$f":"IF(TRUE,\"STLKZ\",_xll.IDLSetValue(_xll.IDLPara(1,\"STLKZ\",Database,,,,,,,,,,,,,,,,,ValidFrom,Language,,,,,C182,B182),_xll.IDLPara(2,,A182)))","v":"STLKZ"}]
["AN","Niederländische Antillen (ehemalig)","ANT",{"$f":"IF(TRUE,\"STLKZ\",_xll.IDLSetValue(_xll.IDLPara(1,\"STLKZ\",Database,,,,,,,,,,,,,,,,,ValidFrom,Language,,,,,C183,B183),_xll.IDLPara(2,,A183)))","v":"STLKZ"}]
["NE","Niger","NER",{"$f":"IF(TRUE,\"STLKZ\",_xll.IDLSetValue(_xll.IDLPara(1,\"STLKZ\",Database,,,,,,,,,,,,,,,,,ValidFrom,Language,,,,,C184,B184),_xll.IDLPara(2,,A184)))","v":"STLKZ"}]
["NG","Nigeria","NGA",{"$f":"IF(TRUE,\"STLKZ\",_xll.IDLSetValue(_xll.IDLPara(1,\"STLKZ\",Database,,,,,,,,,,,,,,,,,ValidFrom,Language,,,,,C185,B185),_xll.IDLPara(2,,A185)))","v":"STLKZ"}]
["NU","Niue","NIU",{"$f":"IF(TRUE,\"STLKZ\",_xll.IDLSetValue(_xll.IDLPara(1,\"STLKZ\",Database,,,,,,,,,,,,,,,,,ValidFrom,Language,,,,,C186,B186),_xll.IDLPara(2,,A186)))","v":"STLKZ"}]
["MP","Nördliche Marianen","MNP",{"$f":"IF(TRUE,\"STLKZ\",_xll.IDLSetValue(_xll.IDLPara(1,\"STLKZ\",Database,,,,,,,,,,,,,,,,,ValidFrom,Language,,,,,C187,B187),_xll.IDLPara(2,,A187)))","v":"STLKZ"}]
["NF","Norfolkinsel","NFK",{"$f":"IF(TRUE,\"STLKZ\",_xll.IDLSetValue(_xll.IDLPara(1,\"STLKZ\",Database,,,,,,,,,,,,,,,,,ValidFrom,Language,,,,,C188,B188),_xll.IDLPara(2,,A188)))","v":"STLKZ"}]
["NO","Norwegen","NOR",{"$f":"IF(TRUE,\"STLKZ\",_xll.IDLSetValue(_xll.IDLPara(1,\"STLKZ\",Database,,,,,,,,,,,,,,,,,ValidFrom,Language,,,,,C189,B189),_xll.IDLPara(2,,A189)))","v":"STLKZ"}]
["OM","Oman","OMN",{"$f":"IF(TRUE,\"STLKZ\",_xll.IDLSetValue(_xll.IDLPara(1,\"STLKZ\",Database,,,,,,,,,,,,,,,,,ValidFrom,Language,,,,,C190,B190),_xll.IDLPara(2,,A190)))","v":"STLKZ"}]
["AT","Österreich","AUT",{"$f":"IF(TRUE,\"STLKZ\",_xll.IDLSetValue(_xll.IDLPara(1,\"STLKZ\",Database,,,,,,,,,,,,,,,,,ValidFrom,Language,,,,,C191,B191),_xll.IDLPara(2,,A191)))","v":"STLKZ"}]
["TL ","Osttimor (Timor-Leste)","TLS",{"$f":"IF(TRUE,\"STLKZ\",_xll.IDLSetValue(_xll.IDLPara(1,\"STLKZ\",Database,,,,,,,,,,,,,,,,,ValidFrom,Language,,,,,C192,B192),_xll.IDLPara(2,,A192)))","v":"STLKZ"}]
["PK","Pakistan","PAK",{"$f":"IF(TRUE,\"STLKZ\",_xll.IDLSetValue(_xll.IDLPara(1,\"STLKZ\",Database,,,,,,,,,,,,,,,,,ValidFrom,Language,,,,,C193,B193),_xll.IDLPara(2,,A193)))","v":"STLKZ"}]
["PS","Staat Palästina","PSE",{"$f":"IF(TRUE,\"STLKZ\",_xll.IDLSetValue(_xll.IDLPara(1,\"STLKZ\",Database,,,,,,,,,,,,,,,,,ValidFrom,Language,,,,,C194,B194),_xll.IDLPara(2,,A194)))","v":"STLKZ"}]
["PW","Palau","PLW",{"$f":"IF(TRUE,\"STLKZ\",_xll.IDLSetValue(_xll.IDLPara(1,\"STLKZ\",Database,,,,,,,,,,,,,,,,,ValidFrom,Language,,,,,C195,B195),_xll.IDLPara(2,,A195)))","v":"STLKZ"}]
["PA","Panama","PAN",{"$f":"IF(TRUE,\"STLKZ\",_xll.IDLSetValue(_xll.IDLPara(1,\"STLKZ\",Database,,,,,,,,,,,,,,,,,ValidFrom,Language,,,,,C196,B196),_xll.IDLPara(2,,A196)))","v":"STLKZ"}]
["PG","Papua-Neuguinea","PNG",{"$f":"IF(TRUE,\"STLKZ\",_xll.IDLSetValue(_xll.IDLPara(1,\"STLKZ\",Database,,,,,,,,,,,,,,,,,ValidFrom,Language,,,,,C197,B197),_xll.IDLPara(2,,A197)))","v":"STLKZ"}]
["PY","Paraguay","PRY",{"$f":"IF(TRUE,\"STLKZ\",_xll.IDLSetValue(_xll.IDLPara(1,\"STLKZ\",Database,,,,,,,,,,,,,,,,,ValidFrom,Language,,,,,C198,B198),_xll.IDLPara(2,,A198)))","v":"STLKZ"}]
["PE","Peru","PER",{"$f":"IF(TRUE,\"STLKZ\",_xll.IDLSetValue(_xll.IDLPara(1,\"STLKZ\",Database,,,,,,,,,,,,,,,,,ValidFrom,Language,,,,,C199,B199),_xll.IDLPara(2,,A199)))","v":"STLKZ"}]
["PH","Philippinen","PHL",{"$f":"IF(TRUE,\"STLKZ\",_xll.IDLSetValue(_xll.IDLPara(1,\"STLKZ\",Database,,,,,,,,,,,,,,,,,ValidFrom,Language,,,,,C200,B200),_xll.IDLPara(2,,A200)))","v":"STLKZ"}]
["PN","Pitcairninseln","PCN",{"$f":"IF(TRUE,\"STLKZ\",_xll.IDLSetValue(_xll.IDLPara(1,\"STLKZ\",Database,,,,,,,,,,,,,,,,,ValidFrom,Language,,,,,C201,B201),_xll.IDLPara(2,,A201)))","v":"STLKZ"}]
["PL","Polen","POL",{"$f":"IF(TRUE,\"STLKZ\",_xll.IDLSetValue(_xll.IDLPara(1,\"STLKZ\",Database,,,,,,,,,,,,,,,,,ValidFrom,Language,,,,,C202,B202),_xll.IDLPara(2,,A202)))","v":"STLKZ"}]
["PT","Portugal","PRT",{"$f":"IF(TRUE,\"STLKZ\",_xll.IDLSetValue(_xll.IDLPara(1,\"STLKZ\",Database,,,,,,,,,,,,,,,,,ValidFrom,Language,,,,,C203,B203),_xll.IDLPara(2,,A203)))","v":"STLKZ"}]
["PR","Puerto Rico","PRI",{"$f":"IF(TRUE,\"STLKZ\",_xll.IDLSetValue(_xll.IDLPara(1,\"STLKZ\",Database,,,,,,,,,,,,,,,,,ValidFrom,Language,,,,,C204,B204),_xll.IDLPara(2,,A204)))","v":"STLKZ"}]
["RE","Réunion","REU",{"$f":"IF(TRUE,\"STLKZ\",_xll.IDLSetValue(_xll.IDLPara(1,\"STLKZ\",Database,,,,,,,,,,,,,,,,,ValidFrom,Language,,,,,C205,B205),_xll.IDLPara(2,,A205)))","v":"STLKZ"}]
["RW","Ruanda","RWA",{"$f":"IF(TRUE,\"STLKZ\",_xll.IDLSetValue(_xll.IDLPara(1,\"STLKZ\",Database,,,,,,,,,,,,,,,,,ValidFrom,Language,,,,,C206,B206),_xll.IDLPara(2,,A206)))","v":"STLKZ"}]
["RO","Rumänien","ROU",{"$f":"IF(TRUE,\"STLKZ\",_xll.IDLSetValue(_xll.IDLPara(1,\"STLKZ\",Database,,,,,,,,,,,,,,,,,ValidFrom,Language,,,,,C207,B207),_xll.IDLPara(2,,A207)))","v":"STLKZ"}]
["RU","Russische Föderation","RUS",{"$f":"IF(TRUE,\"STLKZ\",_xll.IDLSetValue(_xll.IDLPara(1,\"STLKZ\",Database,,,,,,,,,,,,,,,,,ValidFrom,Language,,,,,C208,B208),_xll.IDLPara(2,,A208)))","v":"STLKZ"}]
["SB","Salomonen","SLB",{"$f":"IF(TRUE,\"STLKZ\",_xll.IDLSetValue(_xll.IDLPara(1,\"STLKZ\",Database,,,,,,,,,,,,,,,,,ValidFrom,Language,,,,,C209,B209),_xll.IDLPara(2,,A209)))","v":"STLKZ"}]
["BL","Saint-Barthélemy","BLM",{"$f":"IF(TRUE,\"STLKZ\",_xll.IDLSetValue(_xll.IDLPara(1,\"STLKZ\",Database,,,,,,,,,,,,,,,,,ValidFrom,Language,,,,,C210,B210),_xll.IDLPara(2,,A210)))","v":"STLKZ"}]
["MF","Saint-Martin (franz. Teil)","MAF",{"$f":"IF(TRUE,\"STLKZ\",_xll.IDLSetValue(_xll.IDLPara(1,\"STLKZ\",Database,,,,,,,,,,,,,,,,,ValidFrom,Language,,,,,C211,B211),_xll.IDLPara(2,,A211)))","v":"STLKZ"}]
["ZM","Sambia","ZMB",{"$f":"IF(TRUE,\"STLKZ\",_xll.IDLSetValue(_xll.IDLPara(1,\"STLKZ\",Database,,,,,,,,,,,,,,,,,ValidFrom,Language,,,,,C212,B212),_xll.IDLPara(2,,A212)))","v":"STLKZ"}]
["WS","Samoa","WSM",{"$f":"IF(TRUE,\"STLKZ\",_xll.IDLSetValue(_xll.IDLPara(1,\"STLKZ\",Database,,,,,,,,,,,,,,,,,ValidFrom,Language,,,,,C213,B213),_xll.IDLPara(2,,A213)))","v":"STLKZ"}]
["SM","San Marino","SMR",{"$f":"IF(TRUE,\"STLKZ\",_xll.IDLSetValue(_xll.IDLPara(1,\"STLKZ\",Database,,,,,,,,,,,,,,,,,ValidFrom,Language,,,,,C214,B214),_xll.IDLPara(2,,A214)))","v":"STLKZ"}]
["ST","São Tomé und Príncipe","STP",{"$f":"IF(TRUE,\"STLKZ\",_xll.IDLSetValue(_xll.IDLPara(1,\"STLKZ\",Database,,,,,,,,,,,,,,,,,ValidFrom,Language,,,,,C215,B215),_xll.IDLPara(2,,A215)))","v":"STLKZ"}]
["SA","Saudi-Arabien","SAU",{"$f":"IF(TRUE,\"STLKZ\",_xll.IDLSetValue(_xll.IDLPara(1,\"STLKZ\",Database,,,,,,,,,,,,,,,,,ValidFrom,Language,,,,,C216,B216),_xll.IDLPara(2,,A216)))","v":"STLKZ"}]
["SE","Schweden","SWE",{"$f":"IF(TRUE,\"STLKZ\",_xll.IDLSetValue(_xll.IDLPara(1,\"STLKZ\",Database,,,,,,,,,,,,,,,,,ValidFrom,Language,,,,,C217,B217),_xll.IDLPara(2,,A217)))","v":"STLKZ"}]
["CH","Schweiz (Confoederatio Helvetica)","CHE",{"$f":"IF(TRUE,\"STLKZ\",_xll.IDLSetValue(_xll.IDLPara(1,\"STLKZ\",Database,,,,,,,,,,,,,,,,,ValidFrom,Language,,,,,C218,B218),_xll.IDLPara(2,,A218)))","v":"STLKZ"}]
["SN","Senegal","SEN",{"$f":"IF(TRUE,\"STLKZ\",_xll.IDLSetValue(_xll.IDLPara(1,\"STLKZ\",Database,,,,,,,,,,,,,,,,,ValidFrom,Language,,,,,C219,B219),_xll.IDLPara(2,,A219)))","v":"STLKZ"}]
["RS","Serbien","SRB",{"$f":"IF(TRUE,\"STLKZ\",_xll.IDLSetValue(_xll.IDLPara(1,\"STLKZ\",Database,,,,,,,,,,,,,,,,,ValidFrom,Language,,,,,C220,B220),_xll.IDLPara(2,,A220)))","v":"STLKZ"}]
["CS","Serbien und Montenegro (ehemalig)","SCG",{"$f":"IF(TRUE,\"STLKZ\",_xll.IDLSetValue(_xll.IDLPara(1,\"STLKZ\",Database,,,,,,,,,,,,,,,,,ValidFrom,Language,,,,,C221,B221),_xll.IDLPara(2,,A221)))","v":"STLKZ"}]
["SC","Seychellen","SYC",{"$f":"IF(TRUE,\"STLKZ\",_xll.IDLSetValue(_xll.IDLPara(1,\"STLKZ\",Database,,,,,,,,,,,,,,,,,ValidFrom,Language,,,,,C222,B222),_xll.IDLPara(2,,A222)))","v":"STLKZ"}]
["SL","Sierra Leone","SLE",{"$f":"IF(TRUE,\"STLKZ\",_xll.IDLSetValue(_xll.IDLPara(1,\"STLKZ\",Database,,,,,,,,,,,,,,,,,ValidFrom,Language,,,,,C223,B223),_xll.IDLPara(2,,A223)))","v":"STLKZ"}]
["ZW","Simbabwe","ZWE",{"$f":"IF(TRUE,\"STLKZ\",_xll.IDLSetValue(_xll.IDLPara(1,\"STLKZ\",Database,,,,,,,,,,,,,,,,,ValidFrom,Language,,,,,C224,B224),_xll.IDLPara(2,,A224)))","v":"STLKZ"}]
["SG","Singapur","SGP",{"$f":"IF(TRUE,\"STLKZ\",_xll.IDLSetValue(_xll.IDLPara(1,\"STLKZ\",Database,,,,,,,,,,,,,,,,,ValidFrom,Language,,,,,C225,B225),_xll.IDLPara(2,,A225)))","v":"STLKZ"}]
["SX","Sint Maarten (niederl. Teil)","SXM",{"$f":"IF(TRUE,\"STLKZ\",_xll.IDLSetValue(_xll.IDLPara(1,\"STLKZ\",Database,,,,,,,,,,,,,,,,,ValidFrom,Language,,,,,C226,B226),_xll.IDLPara(2,,A226)))","v":"STLKZ"}]
["SK","Slowakei","SVK",{"$f":"IF(TRUE,\"STLKZ\",_xll.IDLSetValue(_xll.IDLPara(1,\"STLKZ\",Database,,,,,,,,,,,,,,,,,ValidFrom,Language,,,,,C227,B227),_xll.IDLPara(2,,A227)))","v":"STLKZ"}]
["SI","Slowenien","SVN",{"$f":"IF(TRUE,\"STLKZ\",_xll.IDLSetValue(_xll.IDLPara(1,\"STLKZ\",Database,,,,,,,,,,,,,,,,,ValidFrom,Language,,,,,C228,B228),_xll.IDLPara(2,,A228)))","v":"STLKZ"}]
["SO","Somalia","SOM",{"$f":"IF(TRUE,\"STLKZ\",_xll.IDLSetValue(_xll.IDLPara(1,\"STLKZ\",Database,,,,,,,,,,,,,,,,,ValidFrom,Language,,,,,C229,B229),_xll.IDLPara(2,,A229)))","v":"STLKZ"}]
["ES","Spanien","ESP",{"$f":"IF(TRUE,\"STLKZ\",_xll.IDLSetValue(_xll.IDLPara(1,\"STLKZ\",Database,,,,,,,,,,,,,,,,,ValidFrom,Language,,,,,C230,B230),_xll.IDLPara(2,,A230)))","v":"STLKZ"}]
["LK","Sri Lanka","LKA",{"$f":"IF(TRUE,\"STLKZ\",_xll.IDLSetValue(_xll.IDLPara(1,\"STLKZ\",Database,,,,,,,,,,,,,,,,,ValidFrom,Language,,,,,C231,B231),_xll.IDLPara(2,,A231)))","v":"STLKZ"}]
["SH","St. Helena","SHN",{"$f":"IF(TRUE,\"STLKZ\",_xll.IDLSetValue(_xll.IDLPara(1,\"STLKZ\",Database,,,,,,,,,,,,,,,,,ValidFrom,Language,,,,,C232,B232),_xll.IDLPara(2,,A232)))","v":"STLKZ"}]
["KN","St. Kitts und Nevis","KNA",{"$f":"IF(TRUE,\"STLKZ\",_xll.IDLSetValue(_xll.IDLPara(1,\"STLKZ\",Database,,,,,,,,,,,,,,,,,ValidFrom,Language,,,,,C233,B233),_xll.IDLPara(2,,A233)))","v":"STLKZ"}]
["LC","St. Lucia","LCA",{"$f":"IF(TRUE,\"STLKZ\",_xll.IDLSetValue(_xll.IDLPara(1,\"STLKZ\",Database,,,,,,,,,,,,,,,,,ValidFrom,Language,,,,,C234,B234),_xll.IDLPara(2,,A234)))","v":"STLKZ"}]
["PM","Saint-Pierre und Miquelon","SPM",{"$f":"IF(TRUE,\"STLKZ\",_xll.IDLSetValue(_xll.IDLPara(1,\"STLKZ\",Database,,,,,,,,,,,,,,,,,ValidFrom,Language,,,,,C235,B235),_xll.IDLPara(2,,A235)))","v":"STLKZ"}]
["VC","St. Vincent und die Grenadinen","VCT",{"$f":"IF(TRUE,\"STLKZ\",_xll.IDLSetValue(_xll.IDLPara(1,\"STLKZ\",Database,,,,,,,,,,,,,,,,,ValidFrom,Language,,,,,C236,B236),_xll.IDLPara(2,,A236)))","v":"STLKZ"}]
["ZA","Südafrika","ZAF",{"$f":"IF(TRUE,\"STLKZ\",_xll.IDLSetValue(_xll.IDLPara(1,\"STLKZ\",Database,,,,,,,,,,,,,,,,,ValidFrom,Language,,,,,C237,B237),_xll.IDLPara(2,,A237)))","v":"STLKZ"}]
["SD","Sudan","SDN",{"$f":"IF(TRUE,\"STLKZ\",_xll.IDLSetValue(_xll.IDLPara(1,\"STLKZ\",Database,,,,,,,,,,,,,,,,,ValidFrom,Language,,,,,C238,B238),_xll.IDLPara(2,,A238)))","v":"STLKZ"}]
["GS","Südgeorgien und die Südlichen Sandwichinseln","SGS",{"$f":"IF(TRUE,\"STLKZ\",_xll.IDLSetValue(_xll.IDLPara(1,\"STLKZ\",Database,,,,,,,,,,,,,,,,,ValidFrom,Language,,,,,C239,B239),_xll.IDLPara(2,,A239)))","v":"STLKZ"}]
["SS","Südsudan","SSD",{"$f":"IF(TRUE,\"STLKZ\",_xll.IDLSetValue(_xll.IDLPara(1,\"STLKZ\",Database,,,,,,,,,,,,,,,,,ValidFrom,Language,,,,,C240,B240),_xll.IDLPara(2,,A240)))","v":"STLKZ"}]
["SR","Suriname","SUR",{"$f":"IF(TRUE,\"STLKZ\",_xll.IDLSetValue(_xll.IDLPara(1,\"STLKZ\",Database,,,,,,,,,,,,,,,,,ValidFrom,Language,,,,,C241,B241),_xll.IDLPara(2,,A241)))","v":"STLKZ"}]
["SJ","Svalbard und Jan Mayen","SJM",{"$f":"IF(TRUE,\"STLKZ\",_xll.IDLSetValue(_xll.IDLPara(1,\"STLKZ\",Database,,,,,,,,,,,,,,,,,ValidFrom,Language,,,,,C242,B242),_xll.IDLPara(2,,A242)))","v":"STLKZ"}]
["SZ","Swasiland","SWZ",{"$f":"IF(TRUE,\"STLKZ\",_xll.IDLSetValue(_xll.IDLPara(1,\"STLKZ\",Database,,,,,,,,,,,,,,,,,ValidFrom,Language,,,,,C243,B243),_xll.IDLPara(2,,A243)))","v":"STLKZ"}]
["SY","Syrien, Arabische Republik","SYR",{"$f":"IF(TRUE,\"STLKZ\",_xll.IDLSetValue(_xll.IDLPara(1,\"STLKZ\",Database,,,,,,,,,,,,,,,,,ValidFrom,Language,,,,,C244,B244),_xll.IDLPara(2,,A244)))","v":"STLKZ"}]
["TJ","Tadschikistan","TJK",{"$f":"IF(TRUE,\"STLKZ\",_xll.IDLSetValue(_xll.IDLPara(1,\"STLKZ\",Database,,,,,,,,,,,,,,,,,ValidFrom,Language,,,,,C245,B245),_xll.IDLPara(2,,A245)))","v":"STLKZ"}]
["TW","Republik China (Taiwan)","TWN",{"$f":"IF(TRUE,\"STLKZ\",_xll.IDLSetValue(_xll.IDLPara(1,\"STLKZ\",Database,,,,,,,,,,,,,,,,,ValidFrom,Language,,,,,C246,B246),_xll.IDLPara(2,,A246)))","v":"STLKZ"}]
["TZ","Tansania, Vereinigte Republik","TZA",{"$f":"IF(TRUE,\"STLKZ\",_xll.IDLSetValue(_xll.IDLPara(1,\"STLKZ\",Database,,,,,,,,,,,,,,,,,ValidFrom,Language,,,,,C247,B247),_xll.IDLPara(2,,A247)))","v":"STLKZ"}]
["TH","Thailand","THA",{"$f":"IF(TRUE,\"STLKZ\",_xll.IDLSetValue(_xll.IDLPara(1,\"STLKZ\",Database,,,,,,,,,,,,,,,,,ValidFrom,Language,,,,,C248,B248),_xll.IDLPara(2,,A248)))","v":"STLKZ"}]
["TG","Togo","TGO",{"$f":"IF(TRUE,\"STLKZ\",_xll.IDLSetValue(_xll.IDLPara(1,\"STLKZ\",Database,,,,,,,,,,,,,,,,,ValidFrom,Language,,,,,C249,B249),_xll.IDLPara(2,,A249)))","v":"STLKZ"}]
["TK","Tokelau","TKL",{"$f":"IF(TRUE,\"STLKZ\",_xll.IDLSetValue(_xll.IDLPara(1,\"STLKZ\",Database,,,,,,,,,,,,,,,,,ValidFrom,Language,,,,,C250,B250),_xll.IDLPara(2,,A250)))","v":"STLKZ"}]
["TO","Tonga","TON",{"$f":"IF(TRUE,\"STLKZ\",_xll.IDLSetValue(_xll.IDLPara(1,\"STLKZ\",Database,,,,,,,,,,,,,,,,,ValidFrom,Language,,,,,C251,B251),_xll.IDLPara(2,,A251)))","v":"STLKZ"}]
["TT","Trinidad und Tobago","TTO",{"$f":"IF(TRUE,\"STLKZ\",_xll.IDLSetValue(_xll.IDLPara(1,\"STLKZ\",Database,,,,,,,,,,,,,,,,,ValidFrom,Language,,,,,C252,B252),_xll.IDLPara(2,,A252)))","v":"STLKZ"}]
["TA","Tristan da Cunha (verwaltet von St. Helena)","TAA",{"$f":"IF(TRUE,\"STLKZ\",_xll.IDLSetValue(_xll.IDLPara(1,\"STLKZ\",Database,,,,,,,,,,,,,,,,,ValidFrom,Language,,,,,C253,B253),_xll.IDLPara(2,,A253)))","v":"STLKZ"}]
["TD","Tschad","TCD",{"$f":"IF(TRUE,\"STLKZ\",_xll.IDLSetValue(_xll.IDLPara(1,\"STLKZ\",Database,,,,,,,,,,,,,,,,,ValidFrom,Language,,,,,C254,B254),_xll.IDLPara(2,,A254)))","v":"STLKZ"}]
["CZ","Tschechische Republik","CZE",{"$f":"IF(TRUE,\"STLKZ\",_xll.IDLSetValue(_xll.IDLPara(1,\"STLKZ\",Database,,,,,,,,,,,,,,,,,ValidFrom,Language,,,,,C255,B255),_xll.IDLPara(2,,A255)))","v":"STLKZ"}]
["CS","Tschechoslowakei (ehemalig)","CSK",{"$f":"IF(TRUE,\"STLKZ\",_xll.IDLSetValue(_xll.IDLPara(1,\"STLKZ\",Database,,,,,,,,,,,,,,,,,ValidFrom,Language,,,,,C256,B256),_xll.IDLPara(2,,A256)))","v":"STLKZ"}]
["TN","Tunesien","TUN",{"$f":"IF(TRUE,\"STLKZ\",_xll.IDLSetValue(_xll.IDLPara(1,\"STLKZ\",Database,,,,,,,,,,,,,,,,,ValidFrom,Language,,,,,C257,B257),_xll.IDLPara(2,,A257)))","v":"STLKZ"}]
["TR","Türkei","TUR",{"$f":"IF(TRUE,\"STLKZ\",_xll.IDLSetValue(_xll.IDLPara(1,\"STLKZ\",Database,,,,,,,,,,,,,,,,,ValidFrom,Language,,,,,C258,B258),_xll.IDLPara(2,,A258)))","v":"STLKZ"}]
["TM","Turkmenistan","TKM",{"$f":"IF(TRUE,\"STLKZ\",_xll.IDLSetValue(_xll.IDLPara(1,\"STLKZ\",Database,,,,,,,,,,,,,,,,,ValidFrom,Language,,,,,C259,B259),_xll.IDLPara(2,,A259)))","v":"STLKZ"}]
["TC","Turks- und Caicosinseln","TCA",{"$f":"IF(TRUE,\"STLKZ\",_xll.IDLSetValue(_xll.IDLPara(1,\"STLKZ\",Database,,,,,,,,,,,,,,,,,ValidFrom,Language,,,,,C260,B260),_xll.IDLPara(2,,A260)))","v":"STLKZ"}]
["TV","Tuvalu","TUV",{"$f":"IF(TRUE,\"STLKZ\",_xll.IDLSetValue(_xll.IDLPara(1,\"STLKZ\",Database,,,,,,,,,,,,,,,,,ValidFrom,Language,,,,,C261,B261),_xll.IDLPara(2,,A261)))","v":"STLKZ"}]
["SU","UdSSR (ehemalig)","SUN",{"$f":"IF(TRUE,\"STLKZ\",_xll.IDLSetValue(_xll.IDLPara(1,\"STLKZ\",Database,,,,,,,,,,,,,,,,,ValidFrom,Language,,,,,C262,B262),_xll.IDLPara(2,,A262)))","v":"STLKZ"}]
["UG","Uganda","UGA",{"$f":"IF(TRUE,\"STLKZ\",_xll.IDLSetValue(_xll.IDLPara(1,\"STLKZ\",Database,,,,,,,,,,,,,,,,,ValidFrom,Language,,,,,C263,B263),_xll.IDLPara(2,,A263)))","v":"STLKZ"}]
["UA","Ukraine","UKR",{"$f":"IF(TRUE,\"STLKZ\",_xll.IDLSetValue(_xll.IDLPara(1,\"STLKZ\",Database,,,,,,,,,,,,,,,,,ValidFrom,Language,,,,,C264,B264),_xll.IDLPara(2,,A264)))","v":"STLKZ"}]
["HU","Ungarn","HUN",{"$f":"IF(TRUE,\"STLKZ\",_xll.IDLSetValue(_xll.IDLPara(1,\"STLKZ\",Database,,,,,,,,,,,,,,,,,ValidFrom,Language,,,,,C265,B265),_xll.IDLPara(2,,A265)))","v":"STLKZ"}]
["UM","United States Minor Outlying Islands","UMI",{"$f":"IF(TRUE,\"STLKZ\",_xll.IDLSetValue(_xll.IDLPara(1,\"STLKZ\",Database,,,,,,,,,,,,,,,,,ValidFrom,Language,,,,,C266,B266),_xll.IDLPara(2,,A266)))","v":"STLKZ"}]
["UY","Uruguay","URY",{"$f":"IF(TRUE,\"STLKZ\",_xll.IDLSetValue(_xll.IDLPara(1,\"STLKZ\",Database,,,,,,,,,,,,,,,,,ValidFrom,Language,,,,,C267,B267),_xll.IDLPara(2,,A267)))","v":"STLKZ"}]
["UZ","Usbekistan","UZB",{"$f":"IF(TRUE,\"STLKZ\",_xll.IDLSetValue(_xll.IDLPara(1,\"STLKZ\",Database,,,,,,,,,,,,,,,,,ValidFrom,Language,,,,,C268,B268),_xll.IDLPara(2,,A268)))","v":"STLKZ"}]
["VU","Vanuatu","VUT",{"$f":"IF(TRUE,\"STLKZ\",_xll.IDLSetValue(_xll.IDLPara(1,\"STLKZ\",Database,,,,,,,,,,,,,,,,,ValidFrom,Language,,,,,C269,B269),_xll.IDLPara(2,,A269)))","v":"STLKZ"}]
["VA","Vatikanstadt","VAT",{"$f":"IF(TRUE,\"STLKZ\",_xll.IDLSetValue(_xll.IDLPara(1,\"STLKZ\",Database,,,,,,,,,,,,,,,,,ValidFrom,Language,,,,,C270,B270),_xll.IDLPara(2,,A270)))","v":"STLKZ"}]
["VE","Venezuela","VEN",{"$f":"IF(TRUE,\"STLKZ\",_xll.IDLSetValue(_xll.IDLPara(1,\"STLKZ\",Database,,,,,,,,,,,,,,,,,ValidFrom,Language,,,,,C271,B271),_xll.IDLPara(2,,A271)))","v":"STLKZ"}]
["AE","Vereinigte Arabische Emirate","ARE",{"$f":"IF(TRUE,\"STLKZ\",_xll.IDLSetValue(_xll.IDLPara(1,\"STLKZ\",Database,,,,,,,,,,,,,,,,,ValidFrom,Language,,,,,C272,B272),_xll.IDLPara(2,,A272)))","v":"STLKZ"}]
["US","Vereinigte Staaten von Amerika","USA",{"$f":"IF(TRUE,\"STLKZ\",_xll.IDLSetValue(_xll.IDLPara(1,\"STLKZ\",Database,,,,,,,,,,,,,,,,,ValidFrom,Language,,,,,C273,B273),_xll.IDLPara(2,,A273)))","v":"STLKZ"}]
["GB","Vereinigtes Königreich Großbritannien und Nordirland","GBR",{"$f":"IF(TRUE,\"STLKZ\",_xll.IDLSetValue(_xll.IDLPara(1,\"STLKZ\",Database,,,,,,,,,,,,,,,,,ValidFrom,Language,,,,,C274,B274),_xll.IDLPara(2,,A274)))","v":"STLKZ"}]
["VN","Vietnam","VNM",{"$f":"IF(TRUE,\"STLKZ\",_xll.IDLSetValue(_xll.IDLPara(1,\"STLKZ\",Database,,,,,,,,,,,,,,,,,ValidFrom,Language,,,,,C275,B275),_xll.IDLPara(2,,A275)))","v":"STLKZ"}]
["WF","Wallis und Futuna","WLF",{"$f":"IF(TRUE,\"STLKZ\",_xll.IDLSetValue(_xll.IDLPara(1,\"STLKZ\",Database,,,,,,,,,,,,,,,,,ValidFrom,Language,,,,,C276,B276),_xll.IDLPara(2,,A276)))","v":"STLKZ"}]
["CX","Weihnachtsinsel","CXR",{"$f":"IF(TRUE,\"STLKZ\",_xll.IDLSetValue(_xll.IDLPara(1,\"STLKZ\",Database,,,,,,,,,,,,,,,,,ValidFrom,Language,,,,,C277,B277),_xll.IDLPara(2,,A277)))","v":"STLKZ"}]
["EH","Westsahara","ESH",{"$f":"IF(TRUE,\"STLKZ\",_xll.IDLSetValue(_xll.IDLPara(1,\"STLKZ\",Database,,,,,,,,,,,,,,,,,ValidFrom,Language,,,,,C278,B278),_xll.IDLPara(2,,A278)))","v":"STLKZ"}]
["ZR","Zaire (jetzt Demokratische Republik Kongo)","ZAR",{"$f":"IF(TRUE,\"STLKZ\",_xll.IDLSetValue(_xll.IDLPara(1,\"STLKZ\",Database,,,,,,,,,,,,,,,,,ValidFrom,Language,,,,,C279,B279),_xll.IDLPara(2,,A279)))","v":"STLKZ"}]
["CF","Zentralafrikanische Republik","CAF",{"$f":"IF(TRUE,\"STLKZ\",_xll.IDLSetValue(_xll.IDLPara(1,\"STLKZ\",Database,,,,,,,,,,,,,,,,,ValidFrom,Language,,,,,C280,B280),_xll.IDLPara(2,,A280)))","v":"STLKZ"}]
["CY","Zypern","CYP",{"$f":"IF(TRUE,\"STLKZ\",_xll.IDLSetValue(_xll.IDLPara(1,\"STLKZ\",Database,,,,,,,,,,,,,,,,,ValidFrom,Language,,,,,C281,B281),_xll.IDLPara(2,,A281)))","v":"STLKZ"}]

{"sheet":"WKZ","index":2,"n_rows":166,"n_cols":6,"rows_kept":166,"merged":[[0,0,1,0],[0,1,1,1],[0,2,1,2],[0,3,1,3],[0,4,1,4],[0,5,1,5],[196,8,197,8],[196,9,197,9],[196,10,197,10],[196,12,197,12],[196,13,197,13],[212,8,214,8],[212,9,214,9],[212,10,214,10],[212,11,214,11],[212,13,214,13],[241,8,242,8],[241,9,242,9],[241,10,242,10],[241,12,242,12],[241,13,242,13],[289,8,290,8],[289,9,290,9],[289,10,290,10],[289,12,290,12],[289,13,290,13],[310,8,311,8],[310,9,311,9],[310,11,311,11],[310,12,311,12],[310,13,311,13],[317,8,318,8],[317,9,318,9],[317,10,318,10],[317,12,318,12],[317,13,318,13]]}
["WKZ","Bezeichnung","Kurztext","WKZ\nFaktor","D","Bezug IDL.XLSLINK"]
["",null,"","","",""]
["AED","V.A.Emirate Dirham","AED",1,"2",{"$f":"IF(TRUE,\"STWKZ\",_xll.IDLSetValue(_xll.IDLPara(1,\"STWKZ\",Database,,,,,,,,,,,,,,,,,ValidFrom,Language,,,,,C3,B3),_xll.IDLPara(2,,,A3,D3,E3)))","v":"STWKZ"}]
["AFN","Afghani","Afghani",1,"2",{"$f":"IF(TRUE,\"STWKZ\",_xll.IDLSetValue(_xll.IDLPara(1,\"STWKZ\",Database,,,,,,,,,,,,,,,,,ValidFrom,Language,,,,,C4,B4),_xll.IDLPara(2,,,A4,D4,E4)))","v":"STWKZ"}]
["ALL","Lek","Lek",1,"2",{"$f":"IF(TRUE,\"STWKZ\",_xll.IDLSetValue(_xll.IDLPara(1,\"STWKZ\",Database,,,,,,,,,,,,,,,,,ValidFrom,Language,,,,,C5,B5),_xll.IDLPara(2,,,A5,D5,E5)))","v":"STWKZ"}]
["AMD","Dram","Dram",1,"2",{"$f":"IF(TRUE,\"STWKZ\",_xll.IDLSetValue(_xll.IDLPara(1,\"STWKZ\",Database,,,,,,,,,,,,,,,,,ValidFrom,Language,,,,,C6,B6),_xll.IDLPara(2,,,A6,D6,E6)))","v":"STWKZ"}]
["ANG","Niederl. Antillen Gulden","ANT Gulden",1,"2",{"$f":"IF(TRUE,\"STWKZ\",_xll.IDLSetValue(_xll.IDLPara(1,\"STWKZ\",Database,,,,,,,,,,,,,,,,,ValidFrom,Language,,,,,C7,B7),_xll.IDLPara(2,,,A7,D7,E7)))","v":"STWKZ"}]
["AOA","Kwanza","Kwanza",1,"2",{"$f":"IF(TRUE,\"STWKZ\",_xll.IDLSetValue(_xll.IDLPara(1,\"STWKZ\",Database,,,,,,,,,,,,,,,,,ValidFrom,Language,,,,,C8,B8),_xll.IDLPara(2,,,A8,D8,E8)))","v":"STWKZ"}]
["ARS","Argentinischer Peso","ARS",1,"2",{"$f":"IF(TRUE,\"STWKZ\",_xll.IDLSetValue(_xll.IDLPara(1,\"STWKZ\",Database,,,,,,,,,,,,,,,,,ValidFrom,Language,,,,,C9,B9),_xll.IDLPara(2,,,A9,D9,E9)))","v":"STWKZ"}]
["AUD","Australische Dollar","AUD",1,"2",{"$f":"IF(TRUE,\"STWKZ\",_xll.IDLSetValue(_xll.IDLPara(1,\"STWKZ\",Database,,,,,,,,,,,,,,,,,ValidFrom,Language,,,,,C10,B10),_xll.IDLPara(2,,,A10,D10,E10)))","v":"STWKZ"}]
["AWG","Aruba Florin","Florin",1,"2",{"$f":"IF(TRUE,\"STWKZ\",_xll.IDLSetValue(_xll.IDLPara(1,\"STWKZ\",Database,,,,,,,,,,,,,,,,,ValidFrom,Language,,,,,C11,B11),_xll.IDLPara(2,,,A11,D11,E11)))","v":"STWKZ"}]
["AZN","Aserbaidschan Manat","AserbManat",1,"2",{"$f":"IF(TRUE,\"STWKZ\",_xll.IDLSetValue(_xll.IDLPara(1,\"STWKZ\",Database,,,,,,,,,,,,,,,,,ValidFrom,Language,,,,,C12,B12),_xll.IDLPara(2,,,A12,D12,E12)))","v":"STWKZ"}]
["BAM","Konvertierbare Mark","KonverMark",1,"2",{"$f":"IF(TRUE,\"STWKZ\",_xll.IDLSetValue(_xll.IDLPara(1,\"STWKZ\",Database,,,,,,,,,,,,,,,,,ValidFrom,Language,,,,,C13,B13),_xll.IDLPara(2,,,A13,D13,E13)))","v":"STWKZ"}]
["BBD","Barbados-Dollar","Barbados-$",1,"2",{"$f":"IF(TRUE,\"STWKZ\",_xll.IDLSetValue(_xll.IDLPara(1,\"STWKZ\",Database,,,,,,,,,,,,,,,,,ValidFrom,Language,,,,,C14,B14),_xll.IDLPara(2,,,A14,D14,E14)))","v":"STWKZ"}]
["BDT","Taka","Taka",1,"2",{"$f":"IF(TRUE,\"STWKZ\",_xll.IDLSetValue(_xll.IDLPara(1,\"STWKZ\",Database,,,,,,,,,,,,,,,,,ValidFrom,Language,,,,,C15,B15),_xll.IDLPara(2,,,A15,D15,E15)))","v":"STWKZ"}]
["BGN","Bulgarischer Lew","BGN",1,"2",{"$f":"IF(TRUE,\"STWKZ\",_xll.IDLSetValue(_xll.IDLPara(1,\"STWKZ\",Database,,,,,,,,,,,,,,,,,ValidFrom,Language,,,,,C16,B16),_xll.IDLPara(2,,,A16,D16,E16)))","v":"STWKZ"}]
["BHD","Bahrain-Dinar","BHD",1,"2",{"$f":"IF(TRUE,\"STWKZ\",_xll.IDLSetValue(_xll.IDLPara(1,\"STWKZ\",Database,,,,,,,,,,,,,,,,,ValidFrom,Language,,,,,C17,B17),_xll.IDLPara(2,,,A17,D17,E17)))","v":"STWKZ"}]
["BIF","Burundi-Franc","Bur.Franc",1,"2",{"$f":"IF(TRUE,\"STWKZ\",_xll.IDLSetValue(_xll.IDLPara(1,\"STWKZ\",Database,,,,,,,,,,,,,,,,,ValidFrom,Language,,,,,C18,B18),_xll.IDLPara(2,,,A18,D18,E18)))","v":"STWKZ"}]
["BMD","Bermudischer Dollar","Bermud.-$",1,"2",{"$f":"IF(TRUE,\"STWKZ\",_xll.IDLSetValue(_xll.IDLPara(1,\"STWKZ\",Database,,,,,,,,,,,,,,,,,ValidFrom,Language,,,,,C19,B19),_xll.IDLPara(2,,,A19,D19,E19)))","v":"STWKZ"}]
["BND","Brunei Dollar","Brunei-$",1,"2",{"$f":"IF(TRUE,\"STWKZ\",_xll.IDLSetValue(_xll.IDLPara(1,\"STWKZ\",Database,,,,,,,,,,,,,,,,,ValidFrom,Language,,,,,C20,B20),_xll.IDLPara(2,,,A20,D20,E20)))","v":"STWKZ"}]
["BOB","Boliviano","Boliviano",1,"2",{"$f":"IF(TRUE,\"STWKZ\",_xll.IDLSetValue(_xll.IDLPara(1,\"STWKZ\",Database,,,,,,,,,,,,,,,,,ValidFrom,Language,,,,,C21,B21),_xll.IDLPara(2,,,A21,D21,E21)))","v":"STWKZ"}]
["BOV","Mvdol","Mvdol",1,"2",{"$f":"IF(TRUE,\"STWKZ\",_xll.IDLSetValue(_xll.IDLPara(1,\"STWKZ\",Database,,,,,,,,,,,,,,,,,ValidFrom,Language,,,,,C22,B22),_xll.IDLPara(2,,,A22,D22,E22)))","v":"STWKZ"}]
["BRL","Brasilianischer Real","Real",1,"2",{"$f":"IF(TRUE,\"STWKZ\",_xll.IDLSetValue(_xll.IDLPara(1,\"STWKZ\",Database,,,,,,,,,,,,,,,,,ValidFrom,Language,,,,,C23,B23),_xll.IDLPara(2,,,A23,D23,E23)))","v":"STWKZ"}]
["BSD","Bahamas Dollar","BSD",1,"2",{"$f":"IF(TRUE,\"STWKZ\",_xll.IDLSetValue(_xll.IDLPara(1,\"STWKZ\",Database,,,,,,,,,,,,,,,,,ValidFrom,Language,,,,,C24,B24),_xll.IDLPara(2,,,A24,D24,E24)))","v":"STWKZ"}]
["BTN","Ngultrum","BTN",1,"2",{"$f":"IF(TRUE,\"STWKZ\",_xll.IDLSetValue(_xll.IDLPara(1,\"STWKZ\",Database,,,,,,,,,,,,,,,,,ValidFrom,Language,,,,,C25,B25),_xll.IDLPara(2,,,A25,D25,E25)))","v":"STWKZ"}]
["BWP","Pula","BelarRubel",1,"2",{"$f":"IF(TRUE,\"STWKZ\",_xll.IDLSetValue(_xll.IDLPara(1,\"STWKZ\",Database,,,,,,,,,,,,,,,,,ValidFrom,Language,,,,,C26,B26),_xll.IDLPara(2,,,A26,D26,E26)))","v":"STWKZ"}]
["BYR","Rubel","BYR",1,"2",{"$f":"IF(TRUE,\"STWKZ\",_xll.IDLSetValue(_xll.IDLPara(1,\"STWKZ\",Database,,,,,,,,,,,,,,,,,ValidFrom,Language,,,,,C27,B27),_xll.IDLPara(2,,,A27,D27,E27)))","v":"STWKZ"}]
["BZD","Belize Dollar","Belize-$",1,"2",{"$f":"IF(TRUE,\"STWKZ\",_xll.IDLSetValue(_xll.IDLPara(1,\"STWKZ\",Database,,,,,,,,,,,,,,,,,ValidFrom,Language,,,,,C28,B28),_xll.IDLPara(2,,,A28,D28,E28)))","v":"STWKZ"}]
["CAD","Kanadischer Dollar","Kanada-$",1,"2",{"$f":"IF(TRUE,\"STWKZ\",_xll.IDLSetValue(_xll.IDLPara(1,\"STWKZ\",Database,,,,,,,,,,,,,,,,,ValidFrom,Language,,,,,C29,B29),_xll.IDLPara(2,,,A29,D29,E29)))","v":"STWKZ"}]
["CDF","Kongo-Franc","CDF",1,"2",{"$f":"IF(TRUE,\"STWKZ\",_xll.IDLSetValue(_xll.IDLPara(1,\"STWKZ\",Database,,,,,,,,,,,,,,,,,ValidFrom,Language,,,,,C30,B30),_xll.IDLPara(2,,,A30,D30,E30)))","v":"STWKZ"}]
["CHE","WIR Euro","CHE",1,"2",{"$f":"IF(TRUE,\"STWKZ\",_xll.IDLSetValue(_xll.IDLPara(1,\"STWKZ\",Database,,,,,,,,,,,,,,,,,ValidFrom,Language,,,,,C31,B31),_xll.IDLPara(2,,,A31,D31,E31)))","v":"STWKZ"}]
["CHF","Schweizer Franken","CHF",1,"2",{"$f":"IF(TRUE,\"STWKZ\",_xll.IDLSetValue(_xll.IDLPara(1,\"STWKZ\",Database,,,,,,,,,,,,,,,,,ValidFrom,Language,,,,,C32,B32),_xll.IDLPara(2,,,A32,D32,E32)))","v":"STWKZ"}]
["CHW","WIR Euro","KolumbPeso",1,"2",{"$f":"IF(TRUE,\"STWKZ\",_xll.IDLSetValue(_xll.IDLPara(1,\"STWKZ\",Database,,,,,,,,,,,,,,,,,ValidFrom,Language,,,,,C33,B33),_xll.IDLPara(2,,,A33,D33,E33)))","v":"STWKZ"}]
["CLF","Unidad de Fomento","CHW",1,"2",{"$f":"IF(TRUE,\"STWKZ\",_xll.IDLSetValue(_xll.IDLPara(1,\"STWKZ\",Database,,,,,,,,,,,,,,,,,ValidFrom,Language,,,,,C34,B34),_xll.IDLPara(2,,,A34,D34,E34)))","v":"STWKZ"}]
["CLP","Chilenischer Peso","Chile-Peso",1,"2",{"$f":"IF(TRUE,\"STWKZ\",_xll.IDLSetValue(_xll.IDLPara(1,\"STWKZ\",Database,,,,,,,,,,,,,,,,,ValidFrom,Language,,,,,C35,B35),_xll.IDLPara(2,,,A35,D35,E35)))","v":"STWKZ"}]
["CNY","Renminbi Yuan","Yuan",1,"2",{"$f":"IF(TRUE,\"STWKZ\",_xll.IDLSetValue(_xll.IDLPara(1,\"STWKZ\",Database,,,,,,,,,,,,,,,,,ValidFrom,Language,,,,,C36,B36),_xll.IDLPara(2,,,A36,D36,E36)))","v":"STWKZ"}]
["COP","Kolumbianischer Peso","COP-Peso",1,"2",{"$f":"IF(TRUE,\"STWKZ\",_xll.IDLSetValue(_xll.IDLPara(1,\"STWKZ\",Database,,,,,,,,,,,,,,,,,ValidFrom,Language,,,,,C37,B37),_xll.IDLPara(2,,,A37,D37,E37)))","v":"STWKZ"}]
["COU","Unidad de Valor Real","COU",1,"2",{"$f":"IF(TRUE,\"STWKZ\",_xll.IDLSetValue(_xll.IDLPara(1,\"STWKZ\",Database,,,,,,,,,,,,,,,,,ValidFrom,Language,,,,,C38,B38),_xll.IDLPara(2,,,A38,D38,E38)))","v":"STWKZ"}]
["CRC","Costa-Rica-Colón","CRC",1,"2",{"$f":"IF(TRUE,\"STWKZ\",_xll.IDLSetValue(_xll.IDLPara(1,\"STWKZ\",Database,,,,,,,,,,,,,,,,,ValidFrom,Language,,,,,C39,B39),_xll.IDLPara(2,,,A39,D39,E39)))","v":"STWKZ"}]
["CUC","Peso convertible","CUC",1,"2",{"$f":"IF(TRUE,\"STWKZ\",_xll.IDLSetValue(_xll.IDLPara(1,\"STWKZ\",Database,,,,,,,,,,,,,,,,,ValidFrom,Language,,,,,C40,B40),_xll.IDLPara(2,,,A40,D40,E40)))","v":"STWKZ"}]
["CUP","Kubanischer Peso","Kuba-Peso",1,"2",{"$f":"IF(TRUE,\"STWKZ\",_xll.IDLSetValue(_xll.IDLPara(1,\"STWKZ\",Database,,,,,,,,,,,,,,,,,ValidFrom,Language,,,,,C41,B41),_xll.IDLPara(2,,,A41,D41,E41)))","v":"STWKZ"}]
["CVE","Kap-Verde-Escudo","CVE",1,"2",{"$f":"IF(TRUE,\"STWKZ\",_xll.IDLSetValue(_xll.IDLPara(1,\"STWKZ\",Database,,,,,,,,,,,,,,,,,ValidFrom,Language,,,,,C42,B42),_xll.IDLPara(2,,,A42,D42,E42)))","v":"STWKZ"}]
["CZK","Tschechische Krone","CZK",1,"2",{"$f":"IF(TRUE,\"STWKZ\",_xll.IDLSetValue(_xll.IDLPara(1,\"STWKZ\",Database,,,,,,,,,,,,,,,,,ValidFrom,Language,,,,,C43,B43),_xll.IDLPara(2,,,A43,D43,E43)))","v":"STWKZ"}]
["DJF","Dschibuti-Franc","DJF",1,"2",{"$f":"IF(TRUE,\"STWKZ\",_xll.IDLSetValue(_xll.IDLPara(1,\"STWKZ\",Database,,,,,,,,,,,,,,,,,ValidFrom,Language,,,,,C44,B44),_xll.IDLPara(2,,,A44,D44,E44)))","v":"STWKZ"}]
["DKK","Dänische Krone","DKK",1,"2",{"$f":"IF(TRUE,\"STWKZ\",_xll.IDLSetValue(_xll.IDLPara(1,\"STWKZ\",Database,,,,,,,,,,,,,,,,,ValidFrom,Language,,,,,C45,B45),_xll.IDLPara(2,,,A45,D45,E45)))","v":"STWKZ"}]
["DOP","Dominikanischer Peso","DOP",1,"2",{"$f":"IF(TRUE,\"STWKZ\",_xll.IDLSetValue(_xll.IDLPara(1,\"STWKZ\",Database,,,,,,,,,,,,,,,,,ValidFrom,Language,,,,,C46,B46),_xll.IDLPara(2,,,A46,D46,E46)))","v":"STWKZ"}]
["DZD","Algerischer Dinar","DZD",1,"2",{"$f":"IF(TRUE,\"STWKZ\",_xll.IDLSetValue(_xll.IDLPara(1,\"STWKZ\",Database,,,,,,,,,,,,,,,,,ValidFrom,Language,,,,,C47,B47),_xll.IDLPara(2,,,A47,D47,E47)))","v":"STWKZ"}]
["EGP","Ägyptisches Pfund","EGP",1,"2",{"$f":"IF(TRUE,\"STWKZ\",_xll.IDLSetValue(_xll.IDLPara(1,\"STWKZ\",Database,,,,,,,,,,,,,,,,,ValidFrom,Language,,,,,C48,B48),_xll.IDLPara(2,,,A48,D48,E48)))","v":"STWKZ"}]
["ERN","Eritreischer Nakfa","ERN",1,"2",{"$f":"IF(TRUE,\"STWKZ\",_xll.IDLSetValue(_xll.IDLPara(1,\"STWKZ\",Database,,,,,,,,,,,,,,,,,ValidFrom,Language,,,,,C49,B49),_xll.IDLPara(2,,,A49,D49,E49)))","v":"STWKZ"}]
["ETB","Äthiopischer Birr","ETB",1,"2",{"$f":"IF(TRUE,\"STWKZ\",_xll.IDLSetValue(_xll.IDLPara(1,\"STWKZ\",Database,,,,,,,,,,,,,,,,,ValidFrom,Language,,,,,C50,B50),_xll.IDLPara(2,,,A50,D50,E50)))","v":"STWKZ"}]
["EUR","Euro","EUR",1,"2",{"$f":"IF(TRUE,\"STWKZ\",_xll.IDLSetValue(_xll.IDLPara(1,\"STWKZ\",Database,,,,,,,,,,,,,,,,,ValidFrom,Language,,,,,C51,B51),_xll.IDLPara(2,,,A51,D51,E51)))","v":"STWKZ"}]
["FJD","Fidschi-Dollar","Fidschi-$",1,"2",{"$f":"IF(TRUE,\"STWKZ\",_xll.IDLSetValue(_xll.IDLPara(1,\"STWKZ\",Database,,,,,,,,,,,,,,,,,ValidFrom,Language,,,,,C52,B52),_xll.IDLPara(2,,,A52,D52,E52)))","v":"STWKZ"}]
["FKP","Falkland-Pfund","FKP",1,"2",{"$f":"IF(TRUE,\"STWKZ\",_xll.IDLSetValue(_xll.IDLPara(1,\"STWKZ\",Database,,,,,,,,,,,,,,,,,ValidFrom,Language,,,,,C53,B53),_xll.IDLPara(2,,,A53,D53,E53)))","v":"STWKZ"}]
["GBP","Pfund Sterling","GBP",1,"2",{"$f":"IF(TRUE,\"STWKZ\",_xll.IDLSetValue(_xll.IDLPara(1,\"STWKZ\",Database,,,,,,,,,,,,,,,,,ValidFrom,Language,,,,,C54,B54),_xll.IDLPara(2,,,A54,D54,E54)))","v":"STWKZ"}]
["GEL","Georgischer Lari","GEL",1,"2",{"$f":"IF(TRUE,\"STWKZ\",_xll.IDLSetValue(_xll.IDLPara(1,\"STWKZ\",Database,,,,,,,,,,,,,,,,,ValidFrom,Language,,,,,C55,B55),_xll.IDLPara(2,,,A55,D55,E55)))","v":"STWKZ"}]
["GHS","Cedi","GHS",1,"2",{"$f":"IF(TRUE,\"STWKZ\",_xll.IDLSetValue(_xll.IDLPara(1,\"STWKZ\",Database,,,,,,,,,,,,,,,,,ValidFrom,Language,,,,,C56,B56),_xll.IDLPara(2,,,A56,D56,E56)))","v":"STWKZ"}]
["GIP","Gibraltar-Pfund","GIP",1,"2",{"$f":"IF(TRUE,\"STWKZ\",_xll.IDLSetValue(_xll.IDLPara(1,\"STWKZ\",Database,,,,,,,,,,,,,,,,,ValidFrom,Language,,,,,C57,B57),_xll.IDLPara(2,,,A57,D57,E57)))","v":"STWKZ"}]
["GMD","Dalasi","GMD",1,"2",{"$f":"IF(TRUE,\"STWKZ\",_xll.IDLSetValue(_xll.IDLPara(1,\"STWKZ\",Database,,,,,,,,,,,,,,,,,ValidFrom,Language,,,,,C58,B58),_xll.IDLPara(2,,,A58,D58,E58)))","v":"STWKZ"}]
["GNF","Franc Guinéen","GNF",1,"2",{"$f":"IF(TRUE,\"STWKZ\",_xll.IDLSetValue(_xll.IDLPara(1,\"STWKZ\",Database,,,,,,,,,,,,,,,,,ValidFrom,Language,,,,,C59,B59),_xll.IDLPara(2,,,A59,D59,E59)))","v":"STWKZ"}]
["GTQ","Guatemaltekischer Quetzal","GTQ",1,"2",{"$f":"IF(TRUE,\"STWKZ\",_xll.IDLSetValue(_xll.IDLPara(1,\"STWKZ\",Database,,,,,,,,,,,,,,,,,ValidFrom,Language,,,,,C60,B60),_xll.IDLPara(2,,,A60,D60,E60)))","v":"STWKZ"}]
["GYD","Guyana-Dollar","Guyana-$",1,"2",{"$f":"IF(TRUE,\"STWKZ\",_xll.IDLSetValue(_xll.IDLPara(1,\"STWKZ\",Database,,,,,,,,,,,,,,,,,ValidFrom,Language,,,,,C61,B61),_xll.IDLPara(2,,,A61,D61,E61)))","v":"STWKZ"}]
["HKD","Hongkong-Dollar","Hongkong-$",1,"2",{"$f":"IF(TRUE,\"STWKZ\",_xll.IDLSetValue(_xll.IDLPara(1,\"STWKZ\",Database,,,,,,,,,,,,,,,,,ValidFrom,Language,,,,,C62,B62),_xll.IDLPara(2,,,A62,D62,E62)))","v":"STWKZ"}]
["HNL","Lempira","HNL",1,"2",{"$f":"IF(TRUE,\"STWKZ\",_xll.IDLSetValue(_xll.IDLPara(1,\"STWKZ\",Database,,,,,,,,,,,,,,,,,ValidFrom,Language,,,,,C63,B63),_xll.IDLPara(2,,,A63,D63,E63)))","v":"STWKZ"}]
["HRK","Kroatische Kuna","HRK",1,"2",{"$f":"IF(TRUE,\"STWKZ\",_xll.IDLSetValue(_xll.IDLPara(1,\"STWKZ\",Database,,,,,,,,,,,,,,,,,ValidFrom,Language,,,,,C64,B64),_xll.IDLPara(2,,,A64,D64,E64)))","v":"STWKZ"}]
["HTG","Gourde","Gourde",1,"2",{"$f":"IF(TRUE,\"STWKZ\",_xll.IDLSetValue(_xll.IDLPara(1,\"STWKZ\",Database,,,,,,,,,,,,,,,,,ValidFrom,Language,,,,,C65,B65),_xll.IDLPara(2,,,A65,D65,E65)))","v":"STWKZ"}]
["HUF","Forint","Forint",1,"2",{"$f":"IF(TRUE,\"STWKZ\",_xll.IDLSetValue(_xll.IDLPara(1,\"STWKZ\",Database,,,,,,,,,,,,,,,,,ValidFrom,Language,,,,,C66,B66),_xll.IDLPara(2,,,A66,D66,E66)))","v":"STWKZ"}]
["IDR","Indonesische Rupiah","IDR",1,"2",{"$f":"IF(TRUE,\"STWKZ\",_xll.IDLSetValue(_xll.IDLPara(1,\"STWKZ\",Database,,,,,,,,,,,,,,,,,ValidFrom,Language,,,,,C67,B67),_xll.IDLPara(2,,,A67,D67,E67)))","v":"STWKZ"}]
["ILS","Schekel","Schekel",1,"2",{"$f":"IF(TRUE,\"STWKZ\",_xll.IDLSetValue(_xll.IDLPara(1,\"STWKZ\",Database,,,,,,,,,,,,,,,,,ValidFrom,Language,,,,,C68,B68),_xll.IDLPara(2,,,A68,D68,E68)))","v":"STWKZ"}]
["INR","Indische Rupie","INR",1,"2",{"$f":"IF(TRUE,\"STWKZ\",_xll.IDLSetValue(_xll.IDLPara(1,\"STWKZ\",Database,,,,,,,,,,,,,,,,,ValidFrom,Language,,,,,C69,B69),_xll.IDLPara(2,,,A69,D69,E69)))","v":"STWKZ"}]
["IQD","Irakischer Dinar","IQD",1,"2",{"$f":"IF(TRUE,\"STWKZ\",_xll.IDLSetValue(_xll.IDLPara(1,\"STWKZ\",Database,,,,,,,,,,,,,,,,,ValidFrom,Language,,,,,C70,B70),_xll.IDLPara(2,,,A70,D70,E70)))","v":"STWKZ"}]
["IRR","Iranischer Rial","IRR",1,"2",{"$f":"IF(TRUE,\"STWKZ\",_xll.IDLSetValue(_xll.IDLPara(1,\"STWKZ\",Database,,,,,,,,,,,,,,,,,ValidFrom,Language,,,,,C71,B71),_xll.IDLPara(2,,,A71,D71,E71)))","v":"STWKZ"}]
["ISK","Isländische Krone","ISK",1,"2",{"$f":"IF(TRUE,\"STWKZ\",_xll.IDLSetValue(_xll.IDLPara(1,\"STWKZ\",Database,,,,,,,,,,,,,,,,,ValidFrom,Language,,,,,C72,B72),_xll.IDLPara(2,,,A72,D72,E72)))","v":"STWKZ"}]
["JMD","Jamaika-Dollar","Jamaika-$",1,"2",{"$f":"IF(TRUE,\"STWKZ\",_xll.IDLSetValue(_xll.IDLPara(1,\"STWKZ\",Database,,,,,,,,,,,,,,,,,ValidFrom,Language,,,,,C73,B73),_xll.IDLPara(2,,,A73,D73,E73)))","v":"STWKZ"}]
["JOD","Jordanischer Dinar","JOD",1,"2",{"$f":"IF(TRUE,\"STWKZ\",_xll.IDLSetValue(_xll.IDLPara(1,\"STWKZ\",Database,,,,,,,,,,,,,,,,,ValidFrom,Language,,,,,C74,B74),_xll.IDLPara(2,,,A74,D74,E74)))","v":"STWKZ"}]
["JPY","Yen","Yen",1,"2",{"$f":"IF(TRUE,\"STWKZ\",_xll.IDLSetValue(_xll.IDLPara(1,\"STWKZ\",Database,,,,,,,,,,,,,,,,,ValidFrom,Language,,,,,C75,B75),_xll.IDLPara(2,,,A75,D75,E75)))","v":"STWKZ"}]
["KES","Kenia-Schilling","KES",1,"2",{"$f":"IF(TRUE,\"STWKZ\",_xll.IDLSetValue(_xll.IDLPara(1,\"STWKZ\",Database,,,,,,,,,,,,,,,,,ValidFrom,Language,,,,,C76,B76),_xll.IDLPara(2,,,A76,D76,E76)))","v":"STWKZ"}]
["KGS","Som","Som",1,"2",{"$f":"IF(TRUE,\"STWKZ\",_xll.IDLSetValue(_xll.IDLPara(1,\"STWKZ\",Database,,,,,,,,,,,,,,,,,ValidFrom,Language,,,,,C77,B77),_xll.IDLPara(2,,,A77,D77,E77)))","v":"STWKZ"}]
["KHR","Kambodschanischer Riel","KHR",1,"2",{"$f":"IF(TRUE,\"STWKZ\",_xll.IDLSetValue(_xll.IDLPara(1,\"STWKZ\",Database,,,,,,,,,,,,,,,,,ValidFrom,Language,,,,,C78,B78),_xll.IDLPara(2,,,A78,D78,E78)))","v":"STWKZ"}]
["KMF","Komoren-Franc","KMF",1,"2",{"$f":"IF(TRUE,\"STWKZ\",_xll.IDLSetValue(_xll.IDLPara(1,\"STWKZ\",Database,,,,,,,,,,,,,,,,,ValidFrom,Language,,,,,C79,B79),_xll.IDLPara(2,,,A79,D79,E79)))","v":"STWKZ"}]
["KPW","Nordkoreanischer Won","KPW",1,"2",{"$f":"IF(TRUE,\"STWKZ\",_xll.IDLSetValue(_xll.IDLPara(1,\"STWKZ\",Database,,,,,,,,,,,,,,,,,ValidFrom,Language,,,,,C80,B80),_xll.IDLPara(2,,,A80,D80,E80)))","v":"STWKZ"}]
["KRW","Südkoreanischer Won","KRW",1,"2",{"$f":"IF(TRUE,\"STWKZ\",_xll.IDLSetValue(_xll.IDLPara(1,\"STWKZ\",Database,,,,,,,,,,,,,,,,,ValidFrom,Language,,,,,C81,B81),_xll.IDLPara(2,,,A81,D81,E81)))","v":"STWKZ"}]
["KWD","Kuwait-Dinar","KWD",1,"2",{"$f":"IF(TRUE,\"STWKZ\",_xll.IDLSetValue(_xll.IDLPara(1,\"STWKZ\",Database,,,,,,,,,,,,,,,,,ValidFrom,Language,,,,,C82,B82),_xll.IDLPara(2,,,A82,D82,E82)))","v":"STWKZ"}]
["KYD","Kaiman-Dollar","KYD",1,"2",{"$f":"IF(TRUE,\"STWKZ\",_xll.IDLSetValue(_xll.IDLPara(1,\"STWKZ\",Database,,,,,,,,,,,,,,,,,ValidFrom,Language,,,,,C83,B83),_xll.IDLPara(2,,,A83,D83,E83)))","v":"STWKZ"}]
["KZT","Tenge","Tenge",1,"2",{"$f":"IF(TRUE,\"STWKZ\",_xll.IDLSetValue(_xll.IDLPara(1,\"STWKZ\",Database,,,,,,,,,,,,,,,,,ValidFrom,Language,,,,,C84,B84),_xll.IDLPara(2,,,A84,D84,E84)))","v":"STWKZ"}]
["LAK","Laotischer Kip","LAK",1,"2",{"$f":"IF(TRUE,\"STWKZ\",_xll.IDLSetValue(_xll.IDLPara(1,\"STWKZ\",Database,,,,,,,,,,,,,,,,,ValidFrom,Language,,,,,C85,B85),_xll.IDLPara(2,,,A85,D85,E85)))","v":"STWKZ"}]
["LBP","Libanesisches Pfund","LBP",1,"2",{"$f":"IF(TRUE,\"STWKZ\",_xll.IDLSetValue(_xll.IDLPara(1,\"STWKZ\",Database,,,,,,,,,,,,,,,,,ValidFrom,Language,,,,,C86,B86),_xll.IDLPara(2,,,A86,D86,E86)))","v":"STWKZ"}]
["LKR","Sri-Lanka-Rupie","LKR",1,"2",{"$f":"IF(TRUE,\"STWKZ\",_xll.IDLSetValue(_xll.IDLPara(1,\"STWKZ\",Database,,,,,,,,,,,,,,,,,ValidFrom,Language,,,,,C87,B87),_xll.IDLPara(2,,,A87,D87,E87)))","v":"STWKZ"}]
["LRD","Liberianischer Dollar","Liberia-$",1,"2",{"$f":"IF(TRUE,\"STWKZ\",_xll.IDLSetValue(_xll.IDLPara(1,\"STWKZ\",Database,,,,,,,,,,,,,,,,,ValidFrom,Language,,,,,C88,B88),_xll.IDLPara(2,,,A88,D88,E88)))","v":"STWKZ"}]
["LSL","Lesothischer Loti","LSL",1,"2",{"$f":"IF(TRUE,\"STWKZ\",_xll.IDLSetValue(_xll.IDLPara(1,\"STWKZ\",Database,,,,,,,,,,,,,,,,,ValidFrom,Language,,,,,C89,B89),_xll.IDLPara(2,,,A89,D89,E89)))","v":"STWKZ"}]
["LYD","Libyscher Dinar","LYD",1,"2",{"$f":"IF(TRUE,\"STWKZ\",_xll.IDLSetValue(_xll.IDLPara(1,\"STWKZ\",Database,,,,,,,,,,,,,,,,,ValidFrom,Language,,,,,C90,B90),_xll.IDLPara(2,,,A90,D90,E90)))","v":"STWKZ"}]
["MAD","Marokkanischer Dirham","MAD",1,"2",{"$f":"IF(TRUE,\"STWKZ\",_xll.IDLSetValue(_xll.IDLPara(1,\"STWKZ\",Database,,,,,,,,,,,,,,,,,ValidFrom,Language,,,,,C91,B91),_xll.IDLPara(2,,,A91,D91,E91)))","v":"STWKZ"}]
["MDL","Moldauischer Leu","MDL",1,"2",{"$f":"IF(TRUE,\"STWKZ\",_xll.IDLSetValue(_xll.IDLPara(1,\"STWKZ\",Database,,,,,,,,,,,,,,,,,ValidFrom,Language,,,,,C92,B92),_xll.IDLPara(2,,,A92,D92,E92)))","v":"STWKZ"}]
["MGA","Ariary","Ariary",1,"2",{"$f":"IF(TRUE,\"STWKZ\",_xll.IDLSetValue(_xll.IDLPara(1,\"STWKZ\",Database,,,,,,,,,,,,,,,,,ValidFrom,Language,,,,,C93,B93),_xll.IDLPara(2,,,A93,D93,E93)))","v":"STWKZ"}]
["MKD","Mazedonischer Denar","MKD",1,"2",{"$f":"IF(TRUE,\"STWKZ\",_xll.IDLSetValue(_xll.IDLPara(1,\"STWKZ\",Database,,,,,,,,,,,,,,,,,ValidFrom,Language,,,,,C94,B94),_xll.IDLPara(2,,,A94,D94,E94)))","v":"STWKZ"}]
["MMK","Kyat","Kyat",1,"2",{"$f":"IF(TRUE,\"STWKZ\",_xll.IDLSetValue(_xll.IDLPara(1,\"STWKZ\",Database,,,,,,,,,,,,,,,,,ValidFrom,Language,,,,,C95,B95),_xll.IDLPara(2,,,A95,D95,E95)))","v":"STWKZ"}]
["MNT","Tögrög","Tögrög",1,"2",{"$f":"IF(TRUE,\"STWKZ\",_xll.IDLSetValue(_xll.IDLPara(1,\"STWKZ\",Database,,,,,,,,,,,,,,,,,ValidFrom,Language,,,,,C96,B96),_xll.IDLPara(2,,,A96,D96,E96)))","v":"STWKZ"}]
["MOP","Macau-Pataca","MOP",1,"2",{"$f":"IF(TRUE,\"STWKZ\",_xll.IDLSetValue(_xll.IDLPara(1,\"STWKZ\",Database,,,,,,,,,,,,,,,,,ValidFrom,Language,,,,,C97,B97),_xll.IDLPara(2,,,A97,D97,E97)))","v":"STWKZ"}]
["MRO","Ouguiya","Ouguiya",1,"2",{"$f":"IF(TRUE,\"STWKZ\",_xll.IDLSetValue(_xll.IDLPara(1,\"STWKZ\",Database,,,,,,,,,,,,,,,,,ValidFrom,Language,,,,,C98,B98),_xll.IDLPara(2,,,A98,D98,E98)))","v":"STWKZ"}]
["MUR","Mauritius-Rupie","MUR",1,"2",{"$f":"IF(TRUE,\"STWKZ\",_xll.IDLSetValue(_xll.IDLPara(1,\"STWKZ\",Database,,,,,,,,,,,,,,,,,ValidFrom,Language,,,,,C99,B99),_xll.IDLPara(2,,,A99,D99,E99)))","v":"STWKZ"}]
["MVR","Rufiyaa","Rufiyaa",1,"2",{"$f":"IF(TRUE,\"STWKZ\",_xll.IDLSetValue(_xll.IDLPara(1,\"STWKZ\",Database,,,,,,,,,,,,,,,,,ValidFrom,Language,,,,,C100,B100),_xll.IDLPara(2,,,A100,D100,E100)))","v":"STWKZ"}]
["MWK","Malawi-Kwacha","MWK",1,"2",{"$f":"IF(TRUE,\"STWKZ\",_xll.IDLSetValue(_xll.IDLPara(1,\"STWKZ\",Database,,,,,,,,,,,,,,,,,ValidFrom,Language,,,,,C101,B101),_xll.IDLPara(2,,,A101,D101,E101)))","v":"STWKZ"}]
["MXN","Mexikanischer Peso","MXN",1,"2",{"$f":"IF(TRUE,\"STWKZ\",_xll.IDLSetValue(_xll.IDLPara(1,\"STWKZ\",Database,,,,,,,,,,,,,,,,,ValidFrom,Language,,,,,C102,B102),_xll.IDLPara(2,,,A102,D102,E102)))","v":"STWKZ"}]
["MXV","Unidad de Inversión","MXV",1,"2",{"$f":"IF(TRUE,\"STWKZ\",_xll.IDLSetValue(_xll.IDLPara(1,\"STWKZ\",Database,,,,,,,,,,,,,,,,,ValidFrom,Language,,,,,C103,B103),_xll.IDLPara(2,,,A103,D103,E103)))","v":"STWKZ"}]
["MYR","Ringgit","Ringgit",1,"2",{"$f":"IF(TRUE,\"STWKZ\",_xll.IDLSetValue(_xll.IDLPara(1,\"STWKZ\",Database,,,,,,,,,,,,,,,,,ValidFrom,Language,,,,,C104,B104),_xll.IDLPara(2,,,A104,D104,E104)))","v":"STWKZ"}]
["MZN","Metical","Metical",1,"2",{"$f":"IF(TRUE,\"STWKZ\",_xll.IDLSetValue(_xll.IDLPara(1,\"STWKZ\",Database,,,,,,,,,,,,,,,,,ValidFrom,Language,,,,,C105,B105),_xll.IDLPara(2,,,A105,D105,E105)))","v":"STWKZ"}]
["NAD","Namibia-Dollar","Namibia-$",1,"2",{"$f":"IF(TRUE,\"STWKZ\",_xll.IDLSetValue(_xll.IDLPara(1,\"STWKZ\",Database,,,,,,,,,,,,,,,,,ValidFrom,Language,,,,,C106,B106),_xll.IDLPara(2,,,A106,D106,E106)))","v":"STWKZ"}]
["NGN","Naira","Naira",1,"2",{"$f":"IF(TRUE,\"STWKZ\",_xll.IDLSetValue(_xll.IDLPara(1,\"STWKZ\",Database,,,,,,,,,,,,,,,,,ValidFrom,Language,,,,,C107,B107),_xll.IDLPara(2,,,A107,D107,E107)))","v":"STWKZ"}]
["NIO","Córdoba Oro","NIO",1,"2",{"$f":"IF(TRUE,\"STWKZ\",_xll.IDLSetValue(_xll.IDLPara(1,\"STWKZ\",Database,,,,,,,,,,,,,,,,,ValidFrom,Language,,,,,C108,B108),_xll.IDLPara(2,,,A108,D108,E108)))","v":"STWKZ"}]
["NOK","Norwegische Krone","NOK",1,"2",{"$f":"IF(TRUE,\"STWKZ\",_xll.IDLSetValue(_xll.IDLPara(1,\"STWKZ\",Database,,,,,,,,,,,,,,,,,ValidFrom,Language,,,,,C109,B109),_xll.IDLPara(2,,,A109,D109,E109)))","v":"STWKZ"}]
["NPR","Nepalesische Rupie","NPR",1,"2",{"$f":"IF(TRUE,\"STWKZ\",_xll.IDLSetValue(_xll.IDLPara(1,\"STWKZ\",Database,,,,,,,,,,,,,,,,,ValidFrom,Language,,,,,C110,B110),_xll.IDLPara(2,,,A110,D110,E110)))","v":"STWKZ"}]
["NZD","Neuseeland-Dollar","Neuseel.-$",1,"2",{"$f":"IF(TRUE,\"STWKZ\",_xll.IDLSetValue(_xll.IDLPara(1,\"STWKZ\",Database,,,,,,,,,,,,,,,,,ValidFrom,Language,,,,,C111,B111),_xll.IDLPara(2,,,A111,D111,E111)))","v":"STWKZ"}]
["OMR","Omanischer Rial","OMR",1,"2",{"$f":"IF(TRUE,\"STWKZ\",_xll.IDLSetValue(_xll.IDLPara(1,\"STWKZ\",Database,,,,,,,,,,,,,,,,,ValidFrom,Language,,,,,C112,B112),_xll.IDLPara(2,,,A112,D112,E112)))","v":"STWKZ"}]
["PAB","Panamaischer Balboa","PAB",1,"2",{"$f":"IF(TRUE,\"STWKZ\",_xll.IDLSetValue(_xll.IDLPara(1,\"STWKZ\",Database,,,,,,,,,,,,,,,,,ValidFrom,Language,,,,,C113,B113),_xll.IDLPara(2,,,A113,D113,E113)))","v":"STWKZ"}]
["PEN","Nuevo Sol","Nuevo Sol",1,"2",{"$f":"IF(TRUE,\"STWKZ\",_xll.IDLSetValue(_xll.IDLPara(1,\"STWKZ\",Database,,,,,,,,,,,,,,,,,ValidFrom,Language,,,,,C114,B114),_xll.IDLPara(2,,,A114,D114,E114)))","v":"STWKZ"}]
["PGK","Kina","Kina",1,"2",{"$f":"IF(TRUE,\"STWKZ\",_xll.IDLSetValue(_xll.IDLPara(1,\"STWKZ\",Database,,,,,,,,,,,,,,,,,ValidFrom,Language,,,,,C115,B115),_xll.IDLPara(2,,,A115,D115,E115)))","v":"STWKZ"}]
["PHP","Philippinischer Peso","PHP",1,"2",{"$f":"IF(TRUE,\"STWKZ\",_xll.IDLSetValue(_xll.IDLPara(1,\"STWKZ\",Database,,,,,,,,,,,,,,,,,ValidFrom,Language,,,,,C116,B116),_xll.IDLPara(2,,,A116,D116,E116)))","v":"STWKZ"}]
["PKR","Pakistanische Rupie","PKR",1,"2",{"$f":"IF(TRUE,\"STWKZ\",_xll.IDLSetValue(_xll.IDLPara(1,\"STWKZ\",Database,,,,,,,,,,,,,,,,,ValidFrom,Language,,,,,C117,B117),_xll.IDLPara(2,,,A117,D117,E117)))","v":"STWKZ"}]
["PLN","Złoty","Złoty",1,"2",{"$f":"IF(TRUE,\"STWKZ\",_xll.IDLSetValue(_xll.IDLPara(1,\"STWKZ\",Database,,,,,,,,,,,,,,,,,ValidFrom,Language,,,,,C118,B118),_xll.IDLPara(2,,,A118,D118,E118)))","v":"STWKZ"}]
["PYG","Paraguayischer Guaraní","PYG",1,"2",{"$f":"IF(TRUE,\"STWKZ\",_xll.IDLSetValue(_xll.IDLPara(1,\"STWKZ\",Database,,,,,,,,,,,,,,,,,ValidFrom,Language,,,,,C119,B119),_xll.IDLPara(2,,,A119,D119,E119)))","v":"STWKZ"}]
["QAR","Katar-Riyal","QAR",1,"2",{"$f":"IF(TRUE,\"STWKZ\",_xll.IDLSetValue(_xll.IDLPara(1,\"STWKZ\",Database,,,,,,,,,,,,,,,,,ValidFrom,Language,,,,,C120,B120),_xll.IDLPara(2,,,A120,D120,E120)))","v":"STWKZ"}]
["RON","Rumänischer Leu","RON",1,"2",{"$f":"IF(TRUE,\"STWKZ\",_xll.IDLSetValue(_xll.IDLPara(1,\"STWKZ\",Database,,,,,,,,,,,,,,,,,ValidFrom,Language,,,,,C121,B121),_xll.IDLPara(2,,,A121,D121,E121)))","v":"STWKZ"}]
["RSD","Serbischer Dinar","RSD",1,"2",{"$f":"IF(TRUE,\"STWKZ\",_xll.IDLSetValue(_xll.IDLPara(1,\"STWKZ\",Database,,,,,,,,,,,,,,,,,ValidFrom,Language,,,,,C122,B122),_xll.IDLPara(2,,,A122,D122,E122)))","v":"STWKZ"}]
["RUB","Russischer Rubel","RUB",1,"2",{"$f":"IF(TRUE,\"STWKZ\",_xll.IDLSetValue(_xll.IDLPara(1,\"STWKZ\",Database,,,,,,,,,,,,,,,,,ValidFrom,Language,,,,,C123,B123),_xll.IDLPara(2,,,A123,D123,E123)))","v":"STWKZ"}]
["RWF","Ruanda-Franc","RWF",1,"2",{"$f":"IF(TRUE,\"STWKZ\",_xll.IDLSetValue(_xll.IDLPara(1,\"STWKZ\",Database,,,,,,,,,,,,,,,,,ValidFrom,Language,,,,,C124,B124),_xll.IDLPara(2,,,A124,D124,E124)))","v":"STWKZ"}]
["SAR","Saudi-Riyal","SAR",1,"2",{"$f":"IF(TRUE,\"STWKZ\",_xll.IDLSetValue(_xll.IDLPara(1,\"STWKZ\",Database,,,,,,,,,,,,,,,,,ValidFrom,Language,,,,,C125,B125),_xll.IDLPara(2,,,A125,D125,E125)))","v":"STWKZ"}]
["SBD","Salomonen-Dollar","SBD",1,"2",{"$f":"IF(TRUE,\"STWKZ\",_xll.IDLSetValue(_xll.IDLPara(1,\"STWKZ\",Database,,,,,,,,,,,,,,,,,ValidFrom,Language,,,,,C126,B126),_xll.IDLPara(2,,,A126,D126,E126)))","v":"STWKZ"}]
["SCR","Seychellen-Rupie","SCR",1,"2",{"$f":"IF(TRUE,\"STWKZ\",_xll.IDLSetValue(_xll.IDLPara(1,\"STWKZ\",Database,,,,,,,,,,,,,,,,,ValidFrom,Language,,,,,C127,B127),_xll.IDLPara(2,,,A127,D127,E127)))","v":"STWKZ"}]
["SDG","Sudanesisches Pfund","SDG",1,"2",{"$f":"IF(TRUE,\"STWKZ\",_xll.IDLSetValue(_xll.IDLPara(1,\"STWKZ\",Database,,,,,,,,,,,,,,,,,ValidFrom,Language,,,,,C128,B128),_xll.IDLPara(2,,,A128,D128,E128)))","v":"STWKZ"}]
["SSP","Südsudanesisches Pfund","SSP",1,"2",{"$f":"IF(TRUE,\"STWKZ\",_xll.IDLSetValue(_xll.IDLPara(1,\"STWKZ\",Database,,,,,,,,,,,,,,,,,ValidFrom,Language,,,,,C129,B129),_xll.IDLPara(2,,,A129,D129,E129)))","v":"STWKZ"}]
["SEK","Schwedische Krone","SEK",1,"2",{"$f":"IF(TRUE,\"STWKZ\",_xll.IDLSetValue(_xll.IDLPara(1,\"STWKZ\",Database,,,,,,,,,,,,,,,,,ValidFrom,Language,,,,,C130,B130),_xll.IDLPara(2,,,A130,D130,E130)))","v":"STWKZ"}]
["SGD","Singapur-Dollar","Singapur-$",1,"2",{"$f":"IF(TRUE,\"STWKZ\",_xll.IDLSetValue(_xll.IDLPara(1,\"STWKZ\",Database,,,,,,,,,,,,,,,,,ValidFrom,Language,,,,,C131,B131),_xll.IDLPara(2,,,A131,D131,E131)))","v":"STWKZ"}]
["SHP","St.-Helena-Pfund","SHP",1,"2",{"$f":"IF(TRUE,\"STWKZ\",_xll.IDLSetValue(_xll.IDLPara(1,\"STWKZ\",Database,,,,,,,,,,,,,,,,,ValidFrom,Language,,,,,C132,B132),_xll.IDLPara(2,,,A132,D132,E132)))","v":"STWKZ"}]
["SLL","Sierra-leonischer Leone","SLL",1,"2",{"$f":"IF(TRUE,\"STWKZ\",_xll.IDLSetValue(_xll.IDLPara(1,\"STWKZ\",Database,,,,,,,,,,,,,,,,,ValidFrom,Language,,,,,C133,B133),_xll.IDLPara(2,,,A133,D133,E133)))","v":"STWKZ"}]
["SOS","omalia-Schilling","SOS",1,"2",{"$f":"IF(TRUE,\"STWKZ\",_xll.IDLSetValue(_xll.IDLPara(1,\"STWKZ\",Database,,,,,,,,,,,,,,,,,ValidFrom,Language,,,,,C134,B134),_xll.IDLPara(2,,,A134,D134,E134)))","v":"STWKZ"}]
["SRD","Suriname-Dollar","Suriname-$",1,"2",{"$f":"IF(TRUE,\"STWKZ\",_xll.IDLSetValue(_xll.IDLPara(1,\"STWKZ\",Database,,,,,,,,,,,,,,,,,ValidFrom,Language,,,,,C135,B135),_xll.IDLPara(2,,,A135,D135,E135)))","v":"STWKZ"}]
["STD","São-toméischer Dobra","STD",1,"0",{"$f":"IF(TRUE,\"STWKZ\",_xll.IDLSetValue(_xll.IDLPara(1,\"STWKZ\",Database,,,,,,,,,,,,,,,,,ValidFrom,Language,,,,,C136,B136),_xll.IDLPara(2,,,A136,D136,E136)))","v":"STWKZ"}]
["SVC","El-Salvador-Colón","SVC",1,"2",{"$f":"IF(TRUE,\"STWKZ\",_xll.IDLSetValue(_xll.IDLPara(1,\"STWKZ\",Database,,,,,,,,,,,,,,,,,ValidFrom,Language,,,,,C137,B137),_xll.IDLPara(2,,,A137,D137,E137)))","v":"STWKZ"}]
["SYP","Syrische Lira","SYP",1,"2",{"$f":"IF(TRUE,\"STWKZ\",_xll.IDLSetValue(_xll.IDLPara(1,\"STWKZ\",Database,,,,,,,,,,,,,,,,,ValidFrom,Language,,,,,C138,B138),_xll.IDLPara(2,,,A138,D138,E138)))","v":"STWKZ"}]
["SZL","Lilangeni","Lilangeni",1,"2",{"$f":"IF(TRUE,\"STWKZ\",_xll.IDLSetValue(_xll.IDLPara(1,\"STWKZ\",Database,,,,,,,,,,,,,,,,,ValidFrom,Language,,,,,C139,B139),_xll.IDLPara(2,,,A139,D139,E139)))","v":"STWKZ"}]
["THB","Baht","Baht",1,"2",{"$f":"IF(TRUE,\"STWKZ\",_xll.IDLSetValue(_xll.IDLPara(1,\"STWKZ\",Database,,,,,,,,,,,,,,,,,ValidFrom,Language,,,,,C140,B140),_xll.IDLPara(2,,,A140,D140,E140)))","v":"STWKZ"}]
["TJS","Somoni","Somoni",1,"2",{"$f":"IF(TRUE,\"STWKZ\",_xll.IDLSetValue(_xll.IDLPara(1,\"STWKZ\",Database,,,,,,,,,,,,,,,,,ValidFrom,Language,,,,,C141,B141),_xll.IDLPara(2,,,A141,D141,E141)))","v":"STWKZ"}]
["TMT","Turkmenistan-Manat","TMT",1,"2",{"$f":"IF(TRUE,\"STWKZ\",_xll.IDLSetValue(_xll.IDLPara(1,\"STWKZ\",Database,,,,,,,,,,,,,,,,,ValidFrom,Language,,,,,C142,B142),_xll.IDLPara(2,,,A142,D142,E142)))","v":"STWKZ"}]
["TND","Tunesischer Dinar","TND",1,"2",{"$f":"IF(TRUE,\"STWKZ\",_xll.IDLSetValue(_xll.IDLPara(1,\"STWKZ\",Database,,,,,,,,,,,,,,,,,ValidFrom,Language,,,,,C143,B143),_xll.IDLPara(2,,,A143,D143,E143)))","v":"STWKZ"}]
["TOP","Paʻanga","Paʻanga",1,"2",{"$f":"IF(TRUE,\"STWKZ\",_xll.IDLSetValue(_xll.IDLPara(1,\"STWKZ\",Database,,,,,,,,,,,,,,,,,ValidFrom,Language,,,,,C144,B144),_xll.IDLPara(2,,,A144,D144,E144)))","v":"STWKZ"}]
["TRY","Türkische Lira","TRY",1,"2",{"$f":"IF(TRUE,\"STWKZ\",_xll.IDLSetValue(_xll.IDLPara(1,\"STWKZ\",Database,,,,,,,,,,,,,,,,,ValidFrom,Language,,,,,C145,B145),_xll.IDLPara(2,,,A145,D145,E145)))","v":"STWKZ"}]
["TTD","Trinidad-und-Tobago-Dollar","TTD",1,"2",{"$f":"IF(TRUE,\"STWKZ\",_xll.IDLSetValue(_xll.IDLPara(1,\"STWKZ\",Database,,,,,,,,,,,,,,,,,ValidFrom,Language,,,,,C146,B146),_xll.IDLPara(2,,,A146,D146,E146)))","v":"STWKZ"}]
["TWD","Neuer Taiwan-Dollar","TWD",1,"2",{"$f":"IF(TRUE,\"STWKZ\",_xll.IDLSetValue(_xll.IDLPara(1,\"STWKZ\",Database,,,,,,,,,,,,,,,,,ValidFrom,Language,,,,,C147,B147),_xll.IDLPara(2,,,A147,D147,E147)))","v":"STWKZ"}]
["TZS","Tansania-Schilling","TZS",1,"2",{"$f":"IF(TRUE,\"STWKZ\",_xll.IDLSetValue(_xll.IDLPara(1,\"STWKZ\",Database,,,,,,,,,,,,,,,,,ValidFrom,Language,,,,,C148,B148),_xll.IDLPara(2,,,A148,D148,E148)))","v":"STWKZ"}]
["UAH","Hrywnja","Hrywnja",1,"2",{"$f":"IF(TRUE,\"STWKZ\",_xll.IDLSetValue(_xll.IDLPara(1,\"STWKZ\",Database,,,,,,,,,,,,,,,,,ValidFrom,Language,,,,,C149,B149),_xll.IDLPara(2,,,A149,D149,E149)))","v":"STWKZ"}]
["UGX","Uganda-Schilling","UGX",1,"2",{"$f":"IF(TRUE,\"STWKZ\",_xll.IDLSetValue(_xll.IDLPara(1,\"STWKZ\",Database,,,,,,,,,,,,,,,,,ValidFrom,Language,,,,,C150,B150),_xll.IDLPara(2,,,A150,D150,E150)))","v":"STWKZ"}]
["USD","US-Dollar","US-Dollar",1,"2",{"$f":"IF(TRUE,\"STWKZ\",_xll.IDLSetValue(_xll.IDLPara(1,\"STWKZ\",Database,,,,,,,,,,,,,,,,,ValidFrom,Language,,,,,C151,B151),_xll.IDLPara(2,,,A151,D151,E151)))","v":"STWKZ"}]
["UYI","Peso en Unidades Indexadas","UYI",1,"2",{"$f":"IF(TRUE,\"STWKZ\",_xll.IDLSetValue(_xll.IDLPara(1,\"STWKZ\",Database,,,,,,,,,,,,,,,,,ValidFrom,Language,,,,,C152,B152),_xll.IDLPara(2,,,A152,D152,E152)))","v":"STWKZ"}]
["UYU","Uruguayischer Peso","UYU",1,"2",{"$f":"IF(TRUE,\"STWKZ\",_xll.IDLSetValue(_xll.IDLPara(1,\"STWKZ\",Database,,,,,,,,,,,,,,,,,ValidFrom,Language,,,,,C153,B153),_xll.IDLPara(2,,,A153,D153,E153)))","v":"STWKZ"}]
["UZS","Soʻm","Soʻm",1,"2",{"$f":"IF(TRUE,\"STWKZ\",_xll.IDLSetValue(_xll.IDLPara(1,\"STWKZ\",Database,,,,,,,,,,,,,,,,,ValidFrom,Language,,,,,C154,B154),_xll.IDLPara(2,,,A154,D154,E154)))","v":"STWKZ"}]
["VEF","Venezolanischer Bolívar","VEF",1,"2",{"$f":"IF(TRUE,\"STWKZ\",_xll.IDLSetValue(_xll.IDLPara(1,\"STWKZ\",Database,,,,,,,,,,,,,,,,,ValidFrom,Language,,,,,C155,B155),_xll.IDLPara(2,,,A155,D155,E155)))","v":"STWKZ"}]
["VND","Vietnamesischer Đồng","VND",1,"2",{"$f":"IF(TRUE,\"STWKZ\",_xll.IDLSetValue(_xll.IDLPara(1,\"STWKZ\",Database,,,,,,,,,,,,,,,,,ValidFrom,Language,,,,,C156,B156),_xll.IDLPara(2,,,A156,D156,E156)))","v":"STWKZ"}]
["VUV","Vatu","Vatu",1,"2",{"$f":"IF(TRUE,\"STWKZ\",_xll.IDLSetValue(_xll.IDLPara(1,\"STWKZ\",Database,,,,,,,,,,,,,,,,,ValidFrom,Language,,,,,C157,B157),_xll.IDLPara(2,,,A157,D157,E157)))","v":"STWKZ"}]
["WST","Samoanischer Tala","WST",1,"2",{"$f":"IF(TRUE,\"STWKZ\",_xll.IDLSetValue(_xll.IDLPara(1,\"STWKZ\",Database,,,,,,,,,,,,,,,,,ValidFrom,Language,,,,,C158,B158),_xll.IDLPara(2,,,A158,D158,E158)))","v":"STWKZ"}]
["XAF","CFA-Franc BEAC","XAF",1,"2",{"$f":"IF(TRUE,\"STWKZ\",_xll.IDLSetValue(_xll.IDLPara(1,\"STWKZ\",Database,,,,,,,,,,,,,,,,,ValidFrom,Language,,,,,C159,B159),_xll.IDLPara(2,,,A159,D159,E159)))","v":"STWKZ"}]
["XCD","Ostkaribischer Dollar","XCD",1,"2",{"$f":"IF(TRUE,\"STWKZ\",_xll.IDLSetValue(_xll.IDLPara(1,\"STWKZ\",Database,,,,,,,,,,,,,,,,,ValidFrom,Language,,,,,C160,B160),_xll.IDLPara(2,,,A160,D160,E160)))","v":"STWKZ"}]
["XOF","CFA-Franc BCEAO","XOF",1,"2",{"$f":"IF(TRUE,\"STWKZ\",_xll.IDLSetValue(_xll.IDLPara(1,\"STWKZ\",Database,,,,,,,,,,,,,,,,,ValidFrom,Language,,,,,C161,B161),_xll.IDLPara(2,,,A161,D161,E161)))","v":"STWKZ"}]
["XPF","CFP-Franc","XPF",1,"2",{"$f":"IF(TRUE,\"STWKZ\",_xll.IDLSetValue(_xll.IDLPara(1,\"STWKZ\",Database,,,,,,,,,,,,,,,,,ValidFrom,Language,,,,,C162,B162),_xll.IDLPara(2,,,A162,D162,E162)))","v":"STWKZ"}]
["YER","Jemen-Rial","Jemen-Rial",1,"2",{"$f":"IF(TRUE,\"STWKZ\",_xll.IDLSetValue(_xll.IDLPara(1,\"STWKZ\",Database,,,,,,,,,,,,,,,,,ValidFrom,Language,,,,,C163,B163),_xll.IDLPara(2,,,A163,D163,E163)))","v":"STWKZ"}]
["ZAR","Südafrikanischer Rand","ZAR",1,"2",{"$f":"IF(TRUE,\"STWKZ\",_xll.IDLSetValue(_xll.IDLPara(1,\"STWKZ\",Database,,,,,,,,,,,,,,,,,ValidFrom,Language,,,,,C164,B164),_xll.IDLPara(2,,,A164,D164,E164)))","v":"STWKZ"}]
["ZMW","Sambischer Kwacha","ZMW",1,"2",{"$f":"IF(TRUE,\"STWKZ\",_xll.IDLSetValue(_xll.IDLPara(1,\"STWKZ\",Database,,,,,,,,,,,,,,,,,ValidFrom,Language,,,,,C165,B165),_xll.IDLPara(2,,,A165,D165,E165)))","v":"STWKZ"}]
["ZWL","Simbabwe-Dollar","Simbabwe-$",1,"2",{"$f":"IF(TRUE,\"STWKZ\",_xll.IDLSetValue(_xll.IDLPara(1,\"STWKZ\",Database,,,,,,,,,,,,,,,,,ValidFrom,Language,,,,,C166,B166),_xll.IDLPara(2,,,A166,D166,E166)))","v":"STWKZ"}]